Cogmind - Beta 16 @@@ ROGUE MODE // 2025.11.26 @ 10:10:27 Player: H3-MLN Result: Destroyed by Executioner with Helical Railgun Performance ------------- Evolutions (8) 4000 Regions Visited (32) 6400 Robots Destroyed (703) 3515 Value Destroyed (39649) 39649 Prototype IDs (229) 4580 Alien Tech Used (6) 1200 Bonus (45327) 45327 TOTAL SCORE: 104671 Bonus ------- High Alert Combat Kills 27016 Follower Combat Kills 1397 Destroyed Unchained 1000 Registered with UFD 300 Met Optimus in HQ 500 Met Imprinter 300 Met Zhirov 300 Met Warlord at Base 500 MAIN.C Attacked Warlord 500 Warlord Defense Kills 1082 Scanned by Researcher 500 Destroyed Superfortress 15000 Met Optimus at Protoforge 1000 Friendly Fire -4068 Cogmind --------- Core Integrity 0/1450 Matter 265/300 Energy 1520/1520 System Corruption 0% Temperature Cool (0) Movement Walking (110) Location -2/Protoforge Parts ------- > --- POWER (2) -------- Hybrid Graviton Reactor Concept Zero-point Core > --- PROPULSION (5) --- Experimental VSS Leg Experimental Armored Exoskeleton > --- UTILITY (14) ----- Concept Antigrav Storage Unit Experimental Optical Array Concept Networked Targeting System Concept Melee Reflex Suite Concept Weapon Articulator Concept Core Analysis Suite Concept Core Analysis Suite Experimental Reaction Control System Advanced Phase Shifter Heavy Regenerative Plating Concept Network Penetrator Concept Navigation Harness > --- WEAPON (2) ------- Helical Railgun Concept Helical Railcannon > --- INVENTORY (25) --- Concept Chromion Battery (800) Concept NT7 Matterbank (750) Experimental Active Sensor Suite Experimental Kinecellerator Femtoactuators Advanced Force Booster Experimental Reaction Control System Concept Cloak Mesh Concept Cloak Mesh Graphene Brace Concept Matter Streamer Transdimensional Reconstructor Null Cannon Concept Plasma Driver Concept Plasma Driver Concept Plasma Driver Concept Heavy Railcannon Concept Rapid Grenade Launcher Concept Rapid Grenade Launcher Concept Blasthammer Sigix Broadsword Peak State ------------ > --- POWER ------------ Concept Zero-point Core Concept Zero-point Core > --- PROPULSION ------- Experimental Antigrav System Gravjet Array Concept Combat Aerolev Unit Concept Gyrokinetic System > --- UTILITY ---------- Concept Antigrav Storage Unit Experimental Optical Array Concept Networked Targeting System Concept Melee Reflex Suite Concept Weapon Articulator Concept Core Analysis Suite Concept Core Analysis Suite Concept Cloak Mesh Concept Cloak Mesh Heavy Regenerative Plating Graphene Brace System Mapper Concept Network Penetrator > --- WEAPON ----------- Concept Blasthammer Experimental Jetlance > --- INVENTORY -------- Gravjet Array Concept Chromion Battery Concept NT7 Matterbank Experimental Active Sensor Suite Experimental Kinecellerator Femtoactuators Advanced Force Booster Experimental Remote Shield Concept Matter Streamer Transdimensional Reconstructor Concept Navigation Harness Null Cannon Concept Plasma Driver Concept Plasma Driver Concept Plasma Driver Concept Helical Railcannon Concept Heavy Railcannon Concept Rapid Grenade Launcher Concept Rapid Grenade Launcher Sigix Broadsword [Rating: 281] Favorites ----------- Power Concept Zero-point Core Engine Heavy Ion Engine Power Core Concept Zero-point Core Reactor Fusion Reactor Propulsion Experimental Q-thruster Treads Improved Treads Leg Experimental Biometal Leg Wheel Wheel Hover Unit Experimental Antigrav System Flight Unit Experimental Q-thruster Utility Improved Hacking Suite Device Experimental Sensor Array Storage Large Storage Unit Processor Concept Core Analysis Suite Hackware Improved Hacking Suite Protection Heavy Regenerative Plating Weapon Vibroblade Energy Gun Improved Heavy Laser Energy Cannon Beam Cannon Ballistic Gun Heavy Assault Rifle Ballistic Cannon Concept Helical Railcannon Launcher Mini Grenade Launcher Special Weapon Improved Remote Datajack Impact Weapon Mace Slashing Weapon Vibroblade Piercing Weapon Experimental Jetlance Special Melee Weapon Datajack Build | -11 -10 -10 -9 -9 -9 -9 -6 -6 -6 -6 -6 -6 -5 -5 -5 -5 -5 -5 -5 -4 -4 -4 -4 -4 -4 -4 -3 -3 -3 -2 -2 -2 ------- Run | Yrd Mat Min Mat Sto Rec Scr Fac Was Fac Low Low Zio Pro Fac Was Fac Upp Upp Zhi Pro Fac Was Fac Upp Upp War Pro Res Tes Res Qua Frg Slots Evolved 16 | . . . 2 . . . 6 . . . . . . 2 . . . . . . 2 . . . . . . 2 . 2 . . Power 1 | . . . . . . . 1 . . . . . . . . . . . . . . . . . . . . . . . . . Propulsion 3 | . . . 1 . . . 2 . . . . . . . . . . . . . . . . . . . . . . . . . Utility 12 | . . . 1 . . . 3 . . . . . . 2 . . . . . . 2 . . . . . . 2 . 2 . . Weapon . | . . . . . . . . . . . . . . . . . . . . . . . . . . . . . . . . . Parts Attached 372 | 7 10 2 35 18 5 12 29 5 19 . 1 3 13 35 . 10 1 1 3 . 20 4 6 1 . 6 1 2 8 4 4 107 Power 41 | 1 1 1 4 1 . 3 2 . 2 . . . 2 8 . 2 . . 1 . 1 1 1 . . 1 . . 1 . 1 7 Engine 19 | 1 1 1 4 1 . 3 2 . 2 . . . 2 2 . . . . . . . . . . . . . . . . . . Core 14 | . . . . . . . . . . . . . . 6 . . . . . . 1 1 . . . . . . . . 1 5 Reactor 8 | . . . . . . . . . . . . . . . . 2 . . 1 . . . 1 . . 1 . . 1 . . 2 Propulsion 94 | 2 2 1 10 3 2 4 7 1 5 . . . 2 8 . 3 . . 1 . 8 . 2 . . 1 . . 1 . . 31 Treads 14 | 1 1 1 6 . 1 . . . . . . . 1 . . . . . . . . . . . . . . . . . . 3 Leg 9 | . . . . . . . . . . . . . . . . . . . 1 . . . . . . . . . . . . 8 Wheel 11 | 1 1 . 4 3 1 1 . . . . . . . . . . . . . . . . . . . . . . . . . . Hover 22 | . . . . . . . . . . . . . . . . 1 . . . . 2 . . . . . . . . . . 19 Flight 38 | . . . . . . 3 7 1 5 . . . 1 8 . 2 . . . . 6 . 2 . . 1 . . 1 . . 1 Utility 161 | 2 3 . 11 7 2 4 14 2 9 . 1 2 6 16 . 3 . 1 . . 9 1 3 1 . 1 1 2 3 4 2 51 Device 76 | 1 . . 3 2 1 2 5 2 6 . 1 1 4 5 . 1 . 1 . . 2 1 1 1 . . 1 . . 1 . 34 Storage 13 | 1 1 . . . 1 . 2 . . . . 1 . 3 . 1 . . . . . . . . . . . . . . 1 2 Processor 24 | . . . 2 . . . 3 . . . . . 1 4 . . . . . . 2 . 1 . . . . . . 2 1 8 Hackware 22 | . . . . . . . 4 . 2 . . . . 3 . 1 . . . . 5 . 1 . . 1 . 2 2 . . 1 Protection 26 | . 2 . 6 5 . 2 . . 1 . . . 1 1 . . . . . . . . . . . . . . 1 1 . 6 Artifact . | . . . . . . . . . . . . . . . . . . . . . . . . . . . . . . . . . Weapon 76 | 2 4 . 10 7 1 1 6 2 3 . . 1 3 3 . 2 1 . 1 . 2 2 . . . 3 . . 3 . 1 18 Energy Gun 4 | 1 . . 1 1 . . . . . . . . . . . . . . . . . . . . . . . . . . . 1 Energy Cannon 10 | . 2 . 2 . . . 2 . . . . . 1 . . . . . . . . . . . . . . . 1 . . 2 Ballistic Gun 14 | 1 . . 7 3 . 1 . . . . . . . . . . . . . . . . . . . . . . . . . 2 Ballistic Cannon 7 | . 2 . . . . . . . . . . . . . . . . . . . . 1 . . . . . . . . . 4 Launcher 8 | . . . . . . . 2 . . . . . . 1 . . . . . . . 1 . . . . . . . . . 4 Special Weapon 8 | . . . . 1 . . . . . . . 1 . . . . . . . . . . . . . 3 . . 1 . . 2 Impact Weapon 5 | . . . . 2 . . . . 1 . . . . . . . . . . . . . . . . . . . . . . 2 Slashing Weapon 9 | . . . . . . . 1 2 1 . . . 2 1 . . 1 . . . . . . . . . . . . . 1 . Piercing Weapon 2 | . . . . . . . . . . . . . . 1 . . . . . . . . . . . . . . . . . 1 Special Melee Weapon 9 | . . . . . 1 . 1 . 1 . . . . . . 2 . . 1 . 2 . . . . . . . 1 . . . Unidentified Prototypes 38 | . . . 4 2 . . 3 1 . . . 2 7 9 . 1 . . 3 . 2 1 . . . . . . . . 2 1 Corrupted Parts 2 | . . . . . . . . . 1 . . . . . . . . . . . . . . . . . . . . . . 1 System Corruption 7 | . . . . . . . . . 5 . . . . . . . . . . . . . . . . . . . . . . 2 Parts Lost 56 | . 4 . 8 . . . 4 . 4 . . . . 13 . 1 1 . . 1 2 . 1 . . . . . 1 . . 16 Power 8 | . . . 1 . . . 1 . 3 . . . . 3 . . . . . . . . . . . . . . . . . . Propulsion 16 | . 1 . 1 . . . 1 . . . . . . 6 . 1 1 . . 1 1 . . . . . . . . . . 3 Utility 24 | . 1 . 6 . . . 1 . . . . . . 4 . . . . . . 1 . 1 . . . . . 1 . . 9 Weapon 8 | . 2 . . . . . 1 . 1 . . . . . . . . . . . . . . . . . . . . . . 4 Highest Loss Streak 6 | . 2 . 2 . . . 3 . 1 . . . . 6 . 1 1 . . 1 1 . 1 . . . . . 1 . . 3 To Critical Strikes . | . . . . . . . . . . . . . . . . . . . . . . . . . . . . . . . . . Average Backups 17 | 4 19 24 24 24 24 16 13 13 13 14 13 13 13 11 14 13 13 13 14 14 13 13 13 14 14 13 14 12 13 12 12 18 Power . | . 1 2 . 1 1 . . . . 1 . . . . 1 1 1 1 . . . . . 1 1 . . . . . . . Propulsion 2 | 3 8 8 7 8 6 3 1 1 3 3 2 2 . . . . . . . . . 1 . 1 1 1 1 1 1 1 1 . Utility 7 | . 3 7 6 9 11 9 7 6 4 5 5 5 6 5 6 5 5 5 5 6 5 6 6 6 6 7 7 5 5 5 5 9 Weapon 5 | . 5 5 9 4 4 2 3 4 3 4 4 3 3 3 4 4 4 5 5 4 4 3 3 3 3 2 3 3 3 3 3 7 Tool/Special . | . . . . . . . . . . . . . . . . . . . . . . . . . . . . . . . . . Unused Backups 79 | 1 . 6 14 8 2 4 9 . 1 . 1 1 2 1 . 1 . . 1 . 3 . 2 . . . . . 2 . 3 17 Power 2 | . . 1 . . . . . . . . . . . . . . . . . . 1 . . . . . . . . . . . Propulsion 18 | 1 . 3 9 1 . . 1 . . . 1 . . . . . . . . . . . . . . . . . . . . 2 Utility 35 | . . 1 1 1 1 4 8 . 1 . . . 2 1 . 1 . . 1 . 2 . 1 . . . . . 2 . 1 7 Weapon 20 | . . 1 3 6 1 . . . . . . 1 . . . . . . . . . . 1 . . . . . . . 1 6 Tool/Special 4 | . . . 1 . . . . . . . . . . . . . . . . . . . . . . . . . . . 1 2 Average Slot Usage (%) 93 | . 99 100 98 99 100 91 95 86 88 93 93 94 97 95 94 95 97 100 100 98 95 94 96 100 100 99 100 95 99 96 95 87 Engine 5 | . 14 14 10 11 11 10 12 11 9 6 6 7 11 8 . . . . . . . . . . . . . . . . . . Core 2 | . . . . . . . . . . . . . . 1 11 5 5 5 5 5 6 5 4 5 5 5 5 4 4 4 4 5 Reactor 1 | . . . . . . . . . . . . . . . . 4 5 5 5 5 3 5 5 5 5 5 5 4 4 4 4 1 Treads 6 | . 14 14 21 21 22 16 . . . . . . . . . . . . . . . . . . . . . . . . . . Leg 1 | . . . . . . . . . . . . . . . . . . . . . . . . . . . . . . . . 5 Wheel 4 | . 14 14 11 11 11 12 . . . . . . . . . . . . . . . . . . . . . . . . . . Hover 2 | . . . . . . . . . . . . . . . . . . . . . 1 . . . . . . . . . . 6 Flight 11 | . . . . . . 4 32 32 33 33 33 33 33 27 23 24 26 29 28 27 20 21 23 26 26 26 26 23 23 21 20 2 Device 14 | . 8 . 5 10 11 10 10 1 9 13 13 11 12 12 17 16 23 23 23 23 20 21 21 21 21 21 21 22 21 17 20 20 Storage 6 | . 14 14 11 11 11 7 6 6 6 6 6 7 6 3 5 5 5 5 5 5 5 5 5 5 5 5 5 4 4 4 4 4 Processor 9 | . . . . . . . 8 13 8 6 6 6 6 11 17 15 11 11 11 11 10 10 11 15 15 15 15 14 14 17 17 18 Hackware 6 | . . . . . . . 10 13 14 13 13 13 13 14 5 6 5 5 5 5 15 15 13 10 10 10 10 13 16 17 17 5 Protection 5 | . 4 14 14 11 11 10 . . . . . . . . . . . . . . . . . . . . . . . . . 5 Energy Cannon 1 | . 7 14 3 . . . . . . . . . . . . . . . . . . . . . . . . . . . . . Ballistic Gun 3 | . 7 . 18 18 10 2 . . . . . . . . . . . . . . . . . . . . . . . . . . Ballistic Cannon 1 | . 9 14 . . . . . . . . . . . . . . . . . . . . . . . . . . . . . 1 Slashing Weapon 2 | . . . . . . . 3 2 5 6 6 5 10 7 5 5 8 10 6 5 5 6 8 9 9 8 10 5 5 8 5 1 Special Melee Weapon 1 | . . . . . . 8 2 . . 6 6 1 . 2 . 3 2 . 4 4 4 . . . . . . . . . . . Peak Build Rating 281 | 9 11 11 22 28 28 30 62 64 76 76 78 87 98 134 105 112 117 121 121 126 144 149 154 153 152 160 154 167 176 186 197 281 Average Rating 118 | 5 9 10 17 24 27 20 53 55 69 76 76 74 90 109 104 104 114 117 118 119 138 144 147 151 151 153 152 160 167 179 191 249 On Entrance 96 | . 9 9 11 21 28 23 30 37 56 76 76 77 77 98 105 105 112 117 117 120 114 142 145 153 151 151 154 152 167 176 183 197 Avg Prop Armor Cover (%) 5 | 14 11 9 13 13 13 10 2 . . . . . 1 1 . 5 4 4 4 4 6 . 2 9 9 5 2 2 1 2 9 3 Naked Turns 2 | . . . . . . 2 . . . . . . . . . . . . . . . . . . . . . . . . . . Heaviest Build 126 | 11 94 96 101 109 105 105 34 29 36 30 30 38 43 51 38 45 47 49 47 45 56 57 56 48 48 66 51 49 55 50 55 126 Greatest Support 138 | 16 16 16 26 10 10 46 35 28 31 30 30 30 55 56 45 52 51 47 54 47 62 59 59 50 50 59 53 55 55 60 60 138 Greatest Overweight (x) 10 | . 5 5 10 10 10 9 1 1 1 . . 1 1 2 . 1 . 1 . . 1 . . . . 1 1 . . . 1 5 Average Overweight (x) . | . 4 5 8 9 9 3 . . . . . . . . . . . . . . . . . . . . . . . . . . Largest Inventory Capacity 25 | 8 25 25 25 25 25 25 25 15 15 15 15 15 15 15 15 15 15 15 15 15 15 15 15 15 15 15 15 15 15 15 15 25 Average Capacity 19 | 7 24 25 25 25 25 17 15 15 15 15 15 15 15 12 15 15 15 15 15 15 15 15 15 15 15 15 15 15 15 15 15 22 Most Carried 25 | 8 25 25 25 25 25 25 25 15 15 15 15 15 15 15 15 15 15 15 15 15 15 15 15 15 15 15 15 15 15 15 15 25 Average Carried 19 | 4 20 24 24 24 24 16 14 14 14 14 14 14 14 12 14 14 14 14 14 15 14 14 14 15 15 14 14 14 14 14 14 21 Final Capacity 25 | 8 25 25 25 25 25 25 15 15 15 15 15 15 15 15 15 15 15 15 15 15 15 15 15 15 15 15 15 15 15 15 15 25 Final Carried 25 | 8 25 25 24 25 24 25 15 15 15 15 15 15 15 15 15 15 14 15 15 15 14 15 15 15 15 15 15 15 15 15 15 24 Class Distribution -------------------- 30% | Mutant 12% | Scavenger-Mutant 11% | Hacker-Sprinter 8% | Hacker-Mutant 7% | Hacker-Ninja 6% | Hacker-Scout 5% | Scavenger-Gladiator 3% | Wizard-Mutant Dominant Class ---------------- Mutant | -10/Materials Mutant | -10/Mines Mutant | -9/Materials Mutant | -9/Storage Mutant | -9/Recycling Mutant | -9/Scraptown Hacker-Sprinter | -6/Factory Hacker-Sprinter | -6/Waste Hacker-Sprinter | -6/Factory Hacker-Sprinter | -6/Lower Caves Hacker-Sprinter | -6/Lower Caves Hacker-Sprinter | -6/Zion Hacker-Sprinter | -5/Proximity Caves Hacker-Sprinter | -5/Factory Scavenger-Scout | -5/Waste Scavenger-Scout | -5/Factory Scout | -5/Upper Caves Scout | -5/Upper Caves Sprinter | -5/Zhirov Sprinter | -4/Proximity Caves Hacker-Ninja | -4/Factory Hacker-Ninja | -4/Waste Hacker-Ninja | -4/Factory Hacker-Scout | -4/Upper Caves Hacker-Scout | -4/Upper Caves Machinist-Sprinter | -4/Warlord Machinist-Scout | -3/Proximity Caves Hacker-Ninja | -3/Research Hacker-Ninja | -3/Testing Wizard-Scout | -2/Research Wizard-Scout | -2/Quarantine Scavenger-Mutant | -2/Protoforge Resources | -11 -10 -10 -9 -9 -9 -9 -6 -6 -6 -6 -6 -6 -5 -5 -5 -5 -5 -5 -5 -4 -4 -4 -4 -4 -4 -4 -3 -3 -3 -2 -2 -2 ----------- Run | Yrd Mat Min Mat Sto Rec Scr Fac Was Fac Low Low Zio Pro Fac Was Fac Upp Upp Zhi Pro Fac Was Fac Upp Upp War Pro Res Tes Res Qua Frg Matter Collected 26890 | 277 512 253 1208 949 161 375 612 101 728 10 20 110 180 1055 . 278 35 96 80 98 445 302 145 30 20 660 41 117 238 31 99 17624 Remotely 6085 | . . . . . . . . . . . . . . . . . . . . . . . . . . . . . . . . 6085 Salvage Created 32838 | 133 475 105 2052 1817 361 . 626 269 554 55 77 64 308 1743 72 337 . 89 246 81 1018 399 585 . . 228 31 253 540 87 1210 19023 Parts 1416 | 12 27 18 142 93 14 . 23 . 33 1 2 10 12 83 7 11 . 1 4 . 72 5 16 . . 6 2 15 28 7 53 719 Haulers Intercepted 26 | . 2 . 5 6 . . 3 . 2 . . . . 2 . . . . . . 2 . 2 . . . . . . . 1 1 Recyclers Shooed 8 | . 2 1 1 2 . . 1 . . . . . . 1 . . . . . . . . . . . . . . . . . . Parts Field Recycled . | . . . . . . . . . . . . . . . . . . . . . . . . . . . . . . . . . Retrieved Matter . | . . . . . . . . . . . . . . . . . . . . . . . . . . . . . . . . . Parts Self-Destructed 13 | . . . . . . . . . . . . 1 9 . . . . . 2 . . . . . . . 1 . . . . . Prevented . | . . . . . . . . . . . . . . . . . . . . . . . . . . . . . . . . . Parts Restored 11 | . . . . . . . . . . . . . . . . . . . . . . . . . . . . . . . . 11 Faulty 11 | . . . . . . . . . . . . . . . . . . . . . . . . . . . . . . . . 11 Kills | -11 -10 -10 -9 -9 -9 -9 -6 -6 -6 -6 -6 -6 -5 -5 -5 -5 -5 -5 -5 -4 -4 -4 -4 -4 -4 -4 -3 -3 -3 -2 -2 -2 ------- Run | Yrd Mat Min Mat Sto Rec Scr Fac Was Fac Low Low Zio Pro Fac Was Fac Upp Upp Zhi Pro Fac Was Fac Upp Upp War Pro Res Tes Res Qua Frg Combat Hostiles Destroyed 495 | . 13 6 37 21 2 . . 1 3 . . 1 . 16 1 . . . . . 12 1 1 . . 8 . 2 2 . 2 366 Melee 50 | . . . . . . . . . 1 . . 1 . 14 1 . . . . . 4 . 1 . . . . 2 2 . 2 22 Guns 68 | . . . 26 19 2 . . 1 . . . . . . . . . . . . . . . . . . . . . . . 20 Cannons 156 | . 13 6 10 2 . . . . . . . . . . . . . . . . . . . . . 4 . . . . . 121 AOE 200 | . . . . . . . . . . . . . . 2 . . . . . . 8 1 . . . 4 . . . . . 185 Classes Destroyed 32 | 2 6 1 3 1 . . . 1 2 1 1 . . 3 1 . . . . . 2 . . . . . . . . . 1 7 Worker 28 | . 1 . 7 4 . . 3 . 1 . . . . 2 . . . . . . 8 . 1 . . . . . . . 1 . Builder 18 | . . 1 . . . . 4 . 2 . . . . . . . . . . . 4 . . . . . . . . 2 . 5 Tunneler 8 | 3 . 1 1 . . . . . 3 . . . . . . . . . . . . . . . . . . . . . . . Hauler 28 | . 2 . 5 6 . . 3 . 2 . . . . 2 . . . . . . 2 . 2 . . . . . . . 1 3 Recycler 24 | 1 . . 4 6 . . 1 . . . . . . 5 . 2 . . . . . . 1 . . . . 1 1 . 2 . Carrier 3 | . . . . . . . . . . . . . . . . . . . . . . . . . . . . . . . . 3 Minesweeper 5 | . . . . . . . . . . 1 . . 2 . . . . 1 . . . . . . . . 1 . . . . . Mechanic 27 | . . . 1 . . . 3 . . . . . . . . . . . . . . . . . . . . . . . . 23 Operator 16 | . 2 . 2 1 . . 2 . 2 . . . . . . 1 . . . . 2 . . . . . . . 1 . 1 2 Drone 19 | . . . . . . . . . . . . . . . . . . . . . 1 . . . . . . . . . . 18 Watcher 33 | . 1 . 4 2 . . 1 . 2 . . . . 2 . 2 . . . . 5 . 3 . . . . . 3 1 3 4 Swarmer 78 | . 6 6 16 4 . . . . . . . . . 3 . . . . . . 1 . . . . . . . . . . 42 Cutter 2 | . . . . . . . . . . . . . . 2 . . . . . . . . . . . . . . . . . . Saboteur 10 | . . . . . . . . . . . . . . . . . . . . . 1 . . . . . . . . . . 9 Grunt 89 | . 7 . 12 6 . . . . . . . . . 2 . . . . . . 2 . 1 . . 5 . . . . 1 53 Brawler 26 | . . . 1 . . . . . . . . . . . . . . . . . . . . . . 1 . . . . . 24 Duelist 22 | . . . . 1 . . . . . . . . . . . . . . . . . . . . . . . . . . . 21 Protector 20 | . . . . . . . . . . . . . . . 1 . . . . . . . . . . . . . . . . 19 Researcher 12 | . . . . . . . . . . . . . . . . . . . . . . . . . . . . . . . 7 5 Sentry 31 | . . . 8 10 2 . . . 1 . . . . . . . . . . . . . . . . . . . . . . 10 Demolisher 2 | . . . . . . . . . . . . . . . . . . . . . . . . . . 2 . . . . . . Specialist 4 | . . . . . . . . . . . . . . 2 . . . . . . 2 . . . . . . . . . . . Hunter 42 | . . . . . . . . . 1 . . . . . . . . . . . 4 . . . . . . . . . . 37 Programmer 38 | . . . . . . . . . 1 . . . . 4 . . . . . . 1 . . . . . . 2 2 . 1 27 Compactor 2 | . . . . . . . . 1 . . . . . . . . . . . . . 1 . . . . . . . . . . CL-0N3 Special 1 | . . . . . . . . . . . . . . 1 . . . . . . . . . . . . . . . . . . Hotshot 4 | . . . . . . . . . . . . . . . . . . . . . . . . . . . . . . . . 4 Decapitator 8 | . . . . . . . . . . . . . . . . . . . . . . . . . . . . . . . . 8 Immortal 5 | . . . . . . . . . . . . . . . . . . . . . . . . . . . . . . . . 5 Striker 31 | . . . . . . . . . . . . . . . . . . . . . . . . . . . . . . . . 31 Executioner 49 | . . . . . . . . . . . . . . . . . . . . . . . . . . . . . . . . 49 Alpha 7 2 | . . . . . . . . . . . . . . . . . . . . . . . . . . . . . . . . 2 V-Series 7 | . . . . . . . . . . . . . . . . . . . . . . . . . . . . . . . . 7 Elite 1 | . . . . . . . . . . . . . . . . . . . . . . . . . . . . . . . . 1 Scrapoid 7 | . . . . . . . . . . . . . . . . . . . . . . . . . . . . . . . . 7 Decomposer 2 | . . . . . . . . . . 1 1 . . . . . . . . . . . . . . . . . . . . . Packrat 3 | . . . . . . . . . . . 1 . 1 . . . . 1 . . . . . . . . . . . . . . Tinkerer 2 | . . . . . . . . . . . 1 1 . . . . . . . . . . . . . . . . . . . . Surgeon 1 | . . . . . . . . . . . . . . . . . . . . . . . . . . 1 . . . . . . Butcher 1 | . . . . . . . . . . . . . . . . . . . . . . . . . . 1 . . . . . . Martyr 3 | . . . . . . . . . . . . . . 1 . . . . . . . 2 . . . . . . . . . . Best Kill Streak 29 | 3 4 4 8 5 2 . 3 1 5 1 . 1 1 10 1 2 . 1 . . 18 1 3 . . 4 1 2 2 2 6 29 Combat Bots Only 27 | . 3 3 5 4 2 . . 1 2 . . 1 . 9 1 . . . . . 8 1 1 . . 4 . 2 2 . 1 27 Max Kills in Single Turn 10 | 1 1 1 2 2 1 . 1 1 1 1 1 1 1 2 1 1 . 1 . . 5 1 1 . . 3 1 1 1 1 1 10 Gunslinging 1 | . . . 1 1 . . . . . . . . . . . . . . . . . . . . . . . . . . . . Exploded 10 | . . . . . . . . . . . . . . 2 . . . . . . 2 1 . . . 2 . . . . . 10 Melee 1 | . . . . . . . . . 1 . . 1 . 1 1 . . . . . 1 . 1 . . . . 1 1 . 1 1 Uniques/NPCs Destroyed 3 | . . . . . . . . . . . . 1 . 1 . . . . . . . . . . . . . . . . . 1 Imprinter (-6/Zion) CL-0N3 (-5/Factory) Superfortress (-2/Protoforge) Combat | -11 -10 -10 -9 -9 -9 -9 -6 -6 -6 -6 -6 -6 -5 -5 -5 -5 -5 -5 -5 -4 -4 -4 -4 -4 -4 -4 -3 -3 -3 -2 -2 -2 -------- Run | Yrd Mat Min Mat Sto Rec Scr Fac Was Fac Low Low Zio Pro Fac Was Fac Upp Upp Zhi Pro Fac Was Fac Upp Upp War Pro Res Tes Res Qua Frg Hostile Shots Fired 1530 | . 73 13 197 96 16 . 49 . 63 . . . . 228 . . 4 . . 13 89 . 8 . . 10 2 12 12 7 8 630 Missed 563 | . 15 5 50 24 5 . 29 . 39 . . . . 102 . . 2 . . 2 57 . 5 . . 6 2 8 3 1 1 207 Hits 967 | . 58 8 147 72 11 . 20 . 24 . . . . 126 . . 2 . . 11 32 . 3 . . 4 . 4 9 6 7 423 Melee 48 | . . . 3 2 . . 4 . . . . . . 4 . . . . . . . . . . . . . . . . . 35 Projectile 919 | . 58 8 144 70 11 . 16 . 24 . . . . 122 . . 2 . . 11 32 . 3 . . 4 . 4 9 6 7 388 AOE 4 | . . . . . . . 2 . . . . . . 1 . . . . . . . . . . . . . . . . . 1 Critical Strikes 81 | . . . 4 2 2 . . . . . . . . 9 . . 2 . . . 1 . . . . . . 2 . 1 1 57 Actively Blocked 61 | . . . . . . . . . . . . . . . . . . . . . . . . . . . . 2 . 1 1 57 Part Disruptions 3 | . . . . . . . . . . . . . . 1 . . . . . . . . . . . . . 1 . . . 1 Damage Taken 20135 | . 659 61 1735 659 114 . 323 . 322 . . . . 2005 . . 39 . . 163 475 . 72 . . 88 . 93 218 158 167 12784 Core 3056 | . 135 . 170 73 31 . 28 . 88 . . . . 883 . . . . . 76 111 . . . . 18 . 23 47 22 . 1351 Absorbed by Shields 1534 | . . . 73 250 45 . . . . . . . . . . . . . . . . . . . . 35 . . . . . 1131 Redirected to Shielding 358 | . . . . . . . . . . . . . . . . . . . . . . . . . . . . . . . . 358 Ignored by Resistances 269 | . . . . . . . . . . . . . . . . . . . . . . . . . . . . . . . . 269 Regen/Repaired (Parts) 6288 | . 15 . 75 207 . . 237 9 . . . 166 . 55 . . . . . . 20 132 . . . . . . 95 2 232 5043 Core Remaining (%) 64 | 100 . 46 . . . 31 . . . . . . 86 . . . . . . 4 . . . . . . 88 . 94 . . . Volleys Fired 971 | 7 70 16 154 86 29 . 22 11 3 . . . . . . . 2 2 . 10 12 5 4 1 1 10 2 6 15 . . 503 Largest 2 | 2 2 2 2 2 2 . 2 2 1 . . . . . . . 1 1 . 1 1 1 1 1 1 1 1 1 1 . . 2 Hottest 210 | 60 90 90 91 91 88 . 90 80 90 . . . . . . . 113 113 . 113 113 50 113 113 113 113 113 113 130 . . 210 Shots Fired 1560 | 14 137 32 309 172 59 . 23 22 3 . . . . . . . 2 2 . 10 12 5 4 1 1 10 2 6 15 . . 719 Gun 746 | 14 62 . 263 167 59 . 12 22 . . . . . . . . . . . . . . . . . . . . . . . 147 Cannon 602 | . 75 32 46 5 . . 11 . 3 . . . . . . . 2 2 . 10 10 . 4 1 1 1 2 6 7 . . 384 Launcher 171 | . . . . . . . . . . . . . . . . . . . . . 2 5 . . . . . . . . . 164 Special 41 | . . . . . . . . . . . . . . . . . . . . . . . . . . 9 . . 8 . . 24 Kinetic 1003 | 7 79 16 267 161 30 . 11 . . . . . . . . . . . . . . . . . . . . . . . . 432 Thermal 305 | 7 58 16 42 11 29 . 12 22 3 . . . . . . . 2 2 . 10 10 . 4 1 1 1 2 6 7 . . 59 Explosive 170 | . . . . . . . . . . . . . . . . . . . . . 2 5 . . . 9 . . . . . 154 Electromagnetic 50 | . . . . . . . . . . . . . . . . . . . . . . . . . . . . . . . . 50 Robot Hit Streak 42 | 7 9 3 23 24 10 . 9 6 . . . . . . . . . . . . 2 1 . . . 5 . . 3 . . 42 Robot Miss Streak 10 | 1 4 4 4 10 1 . 1 1 . . . . . . . . . . . . 4 8 . . . 3 . . 2 . . 7 Penetration Max 2 | . . . . . . . . . . . . . . . . . . . . . . . . . . . . . . . . 2 Secondary Targets 7 | . . . 4 2 . . . . . . . . . . . . . . . . . . . . . . . . . . . 1 Max Gunslinging Chain 1 | . . . 1 1 . . . . . . . . . . . . . . . . . . . . . . . . . . . 1 Shots Hit Robots 1350 | 12 88 11 189 123 19 3 43 16 20 2 3 5 6 65 3 10 . 3 9 2 34 7 18 . . 6 1 6 22 4 21 599 Core Hits 1054 | 5 29 9 76 50 8 . 15 1 7 1 2 2 4 36 2 3 . 2 2 . 62 5 7 . . 22 1 3 9 2 12 677 Critical Kills 16 | . . . 1 1 . . . . . . . . . . . . . . . . . . . . . . . . . . . 14 Critical Parts Destroyed 26 | . . . 3 . . . . . 4 . . . . . . . . . . . . . . . . . . . . . . 19 Critical Strikes 86 | . 1 . 5 2 . . 1 . 4 . . . . 6 . . . . . . 1 . 1 . . 1 . . 2 . . 62 Meltdown 2 | . . . 1 . . . . . . . . . . . . . . . . . . . . . . . . . . . . 1 Destroy 37 | . . . 3 2 . . . . . . . . . . . . . . . . . . . . . . . . . . . 32 Blast 23 | . 1 . 1 . . . . . . . . . . . . . . . . . . . . . . . . . . . . 21 Smash 8 | . . . . . . . . . 4 . . . . . . . . . . . . . . . . . . . . . . 4 Sever 16 | . . . . . . . 1 . . . . . . 6 . . . . . . 1 . 1 . . 1 . . 2 . . 4 Melee Attacks 843 | . . . . 13 . 3 94 . 57 4 6 7 24 143 3 19 2 4 9 9 86 4 51 4 2 . 7 19 42 17 40 174 Impact 72 | . . . . 13 . . 24 . 8 . . . . . . . . . . . . . . . . . . . . . . 27 Slashing 734 | . . . . . . . 68 . 49 4 6 6 24 135 . 14 2 4 6 8 76 4 51 4 2 . 7 19 42 17 40 146 Piercing 10 | . . . . . . . . . . . . . . . 3 5 . . . . 1 . . . . . . . . . . 1 Sneak Attacks 143 | . . . . 6 . 3 16 . 10 2 2 3 3 23 1 2 . 2 3 . 17 4 4 . . . 1 1 2 2 12 24 Combat Hostiles 6 | . . . . . . . . . . . . 1 . 2 . . . . . . 1 . . . . . . . . . . 2 Follow-up Attacks 12 | . . . . . . . . . . . . . . 8 . . . . . . . . 1 . . . . 1 1 1 . . Martial Strikes 4 | . . . . . . . . . . . . . . . . . . . . . . . . . . . . . . . . 4 Damage Inflicted 147813 | 117 1274 213 3092 2327 422 . 2499 236 1456 169 219 264 520 3973 185 801 . 301 631 121 5768 1196 1418 . . 2331 107 372 1624 390 3384 112403 Guns 10186 | 117 376 . 2449 1776 422 . 168 236 . . . . . . . . . . . . . . . . . . . . . . . 4642 Cannons 30312 | . 897 213 538 61 . . . . . . . . . . . . . . . . . . . . . . . . . . . 28603 Explosions 74704 | . . . 95 . . . 328 . . . . . . 386 . . . . . . 3536 746 . . . 2010 . . . . . 67603 Melee 32279 | . . . . 490 . . 2003 . 1456 169 219 264 520 3587 185 801 . 301 631 121 2232 450 1418 . . . 107 372 1624 390 3384 11555 Ramming 11 | . 1 . 10 . . . . . . . . . . . . . . . . . . . . . . . . . . . . . Kinetic 34379 | 43 650 89 2479 1698 184 . 142 . . . . . . . . . . . . . . . . . . . . . . . . 29094 Thermal 7078 | 74 623 124 508 139 238 . 26 236 . . . . . 386 . . . . . . 1240 . . . . . . . . . . 3484 Explosive 71345 | . . . . . . . 328 . . . . . . . . . . . . . 2296 746 . . . 2010 . . . . . 65965 Electromagnetic 1421 | . . . 95 . . . . . . . . . . . . . . . . . . . . . . . . . . . . 1326 Impact 3471 | . . . . 490 . . 236 . 345 . . . . . . . . . . . . . . . . . . . . . . 2400 Slashing 29607 | . . . . . . . 1767 . 1111 169 219 264 520 3587 . 589 . 301 631 121 2128 450 1418 . . 321 107 372 1624 390 3384 10134 Piercing 501 | . . . . . . . . . . . . . . . 185 212 . . . . 104 . . . . . . . . . . . Highest Corruption 17 | . . . 2 2 2 . 1 1 6 . . . . 8 17 17 17 17 17 17 . . . . . . . . 2 . 2 6 Average Corruption 3 | . . . 2 2 2 . 1 1 1 . . . . 2 12 17 17 17 17 17 . . . . . . . . 2 . 1 3 Corruption Purged 16 | . . . . . . . . . 6 . . . . . . . . . . . . . . . . . . . . . . 10 Corruption Blocked 27 | . . . . . . . . . . . . . . . . . . . . . . . . . . . . . . . . 27 Effects 270 | . . . 23 32 26 . 8 3 4 . . . . 23 3 19 6 9 4 13 . . . . . . . . 3 . 1 93 Message Errors 61 | . . . 6 7 7 . 2 . 1 . . . . 3 . . 1 . . 3 . . . . . . . . 1 . . 30 Matter Fused 81 | . . . 7 10 6 . 3 2 1 . . . . 7 . 7 2 3 2 4 . . . . . . . . 1 . . 26 Heat Flow Errors 44 | . . . 2 7 3 . 1 . . . . . . 2 . 6 1 3 1 2 . . . . . . . . 1 . . 15 Energy Discharges 26 | . . . 2 . 4 . 1 . 1 . . . . 3 . 1 . 3 1 . . . . . . . . . . . . 10 Parts Rejected 1 | . . . . . . . . . . . . . . 1 . . . . . . . . . . . . . . . . . . Parts Fused 6 | . . . 1 . 1 . . . . . . . . 1 . 1 1 . . . . . . . . . . . . . . 1 Data Loss (minor) 30 | . . . 4 4 1 . 1 1 1 . . . . 4 1 2 1 . . 3 . . . . . . . . . . 1 6 Data Loss (major) 10 | . . . . 2 2 . . . . . . . . 1 1 1 . . . . . . . . . . . . . . . 3 Misfires 4 | . . . 1 2 1 . . . . . . . . . . . . . . . . . . . . . . . . . . . Alerts 4 | . . . . . 1 . . . . . . . . 1 . 1 . . . 1 . . . . . . . . . . . . Misdirections 1 | . . . . . . . . . . . . . . . 1 . . . . . . . . . . . . . . . . . Weapon Failures 2 | . . . . . . . . . . . . . . . . . . . . . . . . . . . . . . . . 2 Overload Shots . | . . . . . . . . . . . . . . . . . . . . . . . . . . . . . . . . . Overflow Damage 12165 | . 14 . 7 136 . . 503 . 518 54 67 16 102 352 . 301 . 70 260 88 341 69 109 . . 51 . 14 238 68 905 7882 Projectiles 1817 | . 14 . 7 . . . . . . . . . . . . . . . . . . . . . . . . . . . . 1796 Explosions 3314 | . . . . . . . . . . . . . . 77 . . . . . . 141 . . . . 51 . . . . . 3045 Melee 7034 | . . . . 136 . . 503 . 518 54 67 16 102 275 . 301 . 70 260 88 200 69 109 . . . . 14 238 68 905 3041 Knockbacks 85 | . 5 . . 3 . . 2 . 2 . . . . . . . . . . . . . . . . . . . . . . 73 Impact 13 | . . . . 3 . . 2 . 1 . . . . . . . . . . . . . . . . . . . . . . 7 Kinetic 68 | . 5 . . . . . . . . . . . . . . . . . . . . . . . . . . . . . . 63 Secondary 4 | . . . . . . . . . 1 . . . . . . . . . . . . . . . . . . . . . . 3 Self-Inflicted Damage 407 | . . . 74 . . . . . . . . . . 114 . . . . . . 69 . . . . . . . . . . 150 Shots 9 | . . . 2 . . . . . . . . . . 1 . . . . . . 3 . . . . . . . . . . 3 Rammed 2 | . 1 . 1 . . . . . . . . . . . . . . . . . . . . . . . . . . . . . Targets Rammed 2 | . 1 . 1 . . . . . . . . . . . . . . . . . . . . . . . . . . . . . Kicked . | . . . . . . . . . . . . . . . . . . . . . . . . . . . . . . . . . Crushed . | . . . . . . . . . . . . . . . . . . . . . . . . . . . . . . . . . Highest Temperature 333 | 40 325 195 251 333 277 . 261 57 42 . . . . 236 . 219 189 237 224 264 191 153 212 144 196 209 198 278 252 57 36 245 Average Temperature 59 | 20 87 53 88 49 73 . 49 20 21 . . . . 44 . 74 78 77 119 77 61 56 60 55 67 81 39 39 31 4 24 45 Received Heat Transfer 2134 | . 312 . 461 225 43 . 36 . 63 . . . . 192 . . 27 . . 9 87 . . . . 9 . . . 9 . 661 Effects 8 | . 2 . 1 1 . . . . . . . . . . . . . . . . . . . . . . . . 1 . . 3 Energy Bleed 4 | . 2 . 1 . . . . . . . . . . . . . . . . . . . . . . . . . 1 . . . Interference 4 | . . . . 1 . . . . . . . . . . . . . . . . . . . . . . . . . . . 3 Siege Activations . | . . . . . . . . . . . . . . . . . . . . . . . . . . . . . . . . . Martial Activations . | . . . . . . . . . . . . . . . . . . . . . . . . . . . . . . . . . Shielding Activations . | . . . . . . . . . . . . . . . . . . . . . . . . . . . . . . . . . Robots Disrupted 2 | . . . . . . . . . . . . . . . . . . . . . . . . . . . . . . . . 2 Combat Hostiles 2 | . . . . . . . . . . . . . . . . . . . . . . . . . . . . . . . . 2 Robots Corrupted 23 | . . . . 2 . . 2 . 3 . . . . . . . . . . . . . . . . . . . . . . 16 Combat Hostiles 17 | . . . . . . . . . 2 . . . . . . . . . . . . . . . . . . . . . . 15 Parts Fried 45 | . . . . 8 . . 8 . 7 . . . . . . . . . . . . . . . . . . . . . . 22 Impact Corruptions 33 | . . . . 6 . . 5 . 6 . . . . . . . . . . . . . . . . . . . . . . 16 Robots Melted 2 | . . . 1 . . . . . . . . . . . . . . . . . . . . . . . . . . . . 1 Combat Hostiles 2 | . . . 1 . . . . . . . . . . . . . . . . . . . . . . . . . . . . 1 Parts Melted 12 | 2 . 1 2 . . . . . . . . . . . . . . . . . . . . . . . . . . . . 7 Heat Transferred 6812 | 175 1335 259 1073 222 333 . 37 666 . . . . . 212 . . . . . . 825 . . . . . . . . . . 1675 Parts Sabotaged . | . . . . . . . . . . . . . . . . . . . . . . . . . . . . . . . . . Parts Stolen . | . . . . . . . . . . . . . . . . . . . . . . . . . . . . . . . . . Parts Stripped . | . . . . . . . . . . . . . . . . . . . . . . . . . . . . . . . . . Power Chain Reactions 1 | . . . 1 . . . . . . . . . . . . . . . . . . . . . . . . . . . . . Alert | -11 -10 -10 -9 -9 -9 -9 -6 -6 -6 -6 -6 -6 -5 -5 -5 -5 -5 -5 -5 -4 -4 -4 -4 -4 -4 -4 -3 -3 -3 -2 -2 -2 ------- Run | Yrd Mat Min Mat Sto Rec Scr Fac Was Fac Low Low Zio Pro Fac Was Fac Upp Upp Zhi Pro Fac Was Fac Upp Upp War Pro Res Tes Res Qua Frg Maximum Alert Level 5 | . . . 2 1 . . 2 . . . . . . 2 . . . . . . 3 2 2 . . . . . . . . 5 Low Security (%) 49 | 100 100 100 19 72 100 . 79 100 100 . . . . 53 100 100 . . . . 97 . . . . . . 100 100 100 100 6 Level 1 15 | . . . 78 27 . . 18 . . . . . . 39 . . . . . . . 26 27 . . . . . . . . 1 Level 2 3 | . . . 2 . . . 2 . . . . . . 6 . . . . . . . 73 72 . . . . . . . . . Level 3 6 | . . . . . . . . . . . . . . . . . . . . . 1 . . . . . . . . . . 19 Level 4 5 | . . . . . . . . . . . . . . . . . . . . . . . . . . . . . . . . 17 Level 5 19 | . . . . . . . . . . . . . . . . . . . . . . . . . . . . . . . . 54 High Security . | . . . . . . . . . . . . . . . . . . . . . . . . . . . . . . . . . Max Security . | . . . . . . . . . . . . . . . . . . . . . . . . . . . . . . . . . Peak Influence 11344 | 10 120 90 474 304 41 . 489 164 73 . . . . 535 191 129 . . . . 977 446 570 . . . . 46 72 47 117 11344 Initial 340 | . . 10 . 142 . . . 164 . . . . . . 186 126 . . . . . 340 277 . . . . . . 36 22 60 Average 1556 | 1 38 12 251 148 5 . 154 78 11 . . . . 155 185 69 . . . . 102 405 427 . . . . 18 19 29 52 4255 Influence Increases 22434 | 20 427 210 1222 790 195 . 1146 47 453 5 . . 20 1194 5 128 45 5 10 20 1566 156 928 . 105 508 20 156 267 74 353 12359 Destroy 0b10 Robot/C 10080 | . 260 120 740 420 40 . . . 100 . . . . 320 . . . . . . 260 . 340 . . 220 . 40 40 . 180 7000 Destroy 0b10 Robot/NC 1245 | 20 30 10 120 95 15 . 85 . 60 5 . . 20 55 5 25 . 5 10 5 110 . 65 . . 5 5 5 40 15 40 395 Destroy Leader 1692 | . 66 20 198 156 . . 8 . 38 . . . . 68 . 4 . . . . 74 . 96 . . . . 10 16 2 18 918 Allied During Kill 437 | . . . . . . . . . 40 . . . . 8 . . . . . . 7 . 256 . . 88 . . . . . 38 Trap Triggered on 0b10 170 | . 10 . . . . . . . . . . . . 40 . . . . . . 10 . 10 . . . . . . . . 100 Successful Hack 567 | . 16 . 55 39 23 . 92 . 90 . . . . 16 . 14 . . . . 95 . 40 . . . . 32 12 . 7 36 Select Force Hacks 90 | . . . . . 90 . . . . . . . . . . . . . . . . . . . . . . . . . . . Disable Machine 2205 | . 15 30 45 75 15 . 165 . . . . . . 60 . 45 . . . . 405 . 30 . . . . . 75 . 45 1200 Anti-Garrison Action 350 | . . . . . . . 200 . . . . . . . . . . . . . . . . . . . . . . . . 150 Destroy Structure 2838 | . . . 4 5 12 . 131 47 35 . . . . 132 . 10 . . . . 260 156 46 . . . . 24 54 27 33 1862 Partial Spotted 510 | . . . . . . . 105 . 30 . . . . 30 . 30 . . . . 105 . 15 . . . . 30 30 15 15 105 Lose Combat Pursuer 2250 | . 30 30 60 . . . 360 . 60 . . . . 465 . . 45 . . 15 240 . 30 . 105 195 15 15 . 15 15 555 Influence Decreases 11090 | 20 400 237 884 1128 195 . 677 516 448 10 . . 20 662 356 281 73 5 10 20 592 734 921 260 128 286 362 156 203 98 284 1124 Entered New Map 2421 | . . 17 . 196 . . . 305 . 3 . . . . 346 55 11 . . . . 634 119 150 28 120 342 . . 28 18 49 Time Decay 6490 | 20 370 220 664 632 195 . 517 131 315 7 . . 20 382 10 216 52 5 10 20 522 100 342 110 100 146 20 156 187 70 196 755 Search Patrol Dispatched 200 | . . . . . . . 100 . . . . . . 100 . . . . . . . . . . . . . . . . . . Lost Part 520 | . 30 . 70 . . . 40 . 40 . . . . 130 . 10 10 . . . 10 . 10 . . . . . 10 . . 160 Lost Ally 783 | . . . . . . . 20 80 93 . . . . 50 . . . . . . 60 . 300 . . 20 . . . . . 160 Purge Threat 676 | . . . 150 300 . . . . . . . . . . . . . . . . . . 150 . . . . . 6 . 70 . Squads Dispatched 101 | . 2 . 4 2 . . 16 . 11 . . . . 17 . 3 . . . . 11 . 14 . . . . 3 5 1 2 10 Investigation 50 | . . . 2 1 . . 10 . 5 . . . . 9 . 1 . . . . 7 . 8 . . . . 1 . . . 6 Extermination 25 | . . . . . . . 4 . 3 . . . . 4 . 1 . . . . 4 . 2 . . . . 1 3 . 2 1 Reinforcement 23 | . 2 . 2 1 . . 2 . 3 . . . . 4 . 1 . . . . . . 2 . . . . 1 1 1 . 3 Assault 3 | . . . . . . . . . . . . . . . . . . . . . . . 2 . . . . . 1 . . . Garrison . | . . . . . . . . . . . . . . . . . . . . . . . . . . . . . . . . . Intercept . | . . . . . . . . . . . . . . . . . . . . . . . . . . . . . . . . . Searches Triggered 2 | . . . . . . . 1 . . . . . . 1 . . . . . . . . . . . . . . . . . . Unchained Authorized 1 | . . . . . . . . . . . . . . 1 . . . . . . . . . . . . . . . . . . Construction Impeded 1 | . . . . . . . 1 . . . . . . . . . . . . . . . . . . . . . . . . . Haulers Reinforced 4 | . . . . . . . . . . . . . . 1 . . . . . . . . 2 . . . . . 1 . . . Active Scanning Responses . | . . . . . . . . . . . . . . . . . . . . . . . . . . . . . . . . . Cargo Convoy Interrupts 2 | . . . . . . . . . . . . . . 1 . . . . . . 1 . . . . . . . . . . . Stealth | -11 -10 -10 -9 -9 -9 -9 -6 -6 -6 -6 -6 -6 -5 -5 -5 -5 -5 -5 -5 -4 -4 -4 -4 -4 -4 -4 -3 -3 -3 -2 -2 -2 --------- Run | Yrd Mat Min Mat Sto Rec Scr Fac Was Fac Low Low Zio Pro Fac Was Fac Upp Upp Zhi Pro Fac Was Fac Upp Upp War Pro Res Tes Res Qua Frg Distress Signals 41 | . . . 6 2 . . . . . . . . . 1 . . . . . . 1 . 1 . . 2 . . . 2 . 26 Communications Jammed 26 | . . . . . . . . . 1 . . . . . . . . . . . 9 . 16 . . . . . . . . . Distress Signals 24 | . . . . . . . . . 1 . . . . . . . . . . . 7 . 16 . . . . . . . . . Times Spotted 784 | . 30 9 53 26 2 . 39 8 12 . . 2 . 48 7 4 3 . . 3 43 5 11 . 3 33 1 4 7 6 9 416 Peak Tracking Total 14 | . 4 3 6 4 2 . 9 4 3 . . 1 . 10 6 1 3 . . 2 13 4 3 . 4 13 1 3 2 5 2 14 Tactical Retreats 78 | . 1 1 4 . . . 10 1 4 . . 1 . 12 . . 3 . . 1 7 . 1 . 3 4 1 1 . 1 1 21 Traps | -11 -10 -10 -9 -9 -9 -9 -6 -6 -6 -6 -6 -6 -5 -5 -5 -5 -5 -5 -5 -4 -4 -4 -4 -4 -4 -4 -3 -3 -3 -2 -2 -2 ------- Run | Yrd Mat Min Mat Sto Rec Scr Fac Was Fac Low Low Zio Pro Fac Was Fac Upp Upp Zhi Pro Fac Was Fac Upp Upp War Pro Res Tes Res Qua Frg Traps Triggered 21 | . . . . . . . 3 . 3 . . . . 3 . 1 . . . . 1 . . . . . . . . . . 10 Indirectly 1 | . . . . . . . . . . . . . . . . . . . . . . . . . . . . . . . . 1 Trap Hack Attempts 43 | . . . . . . . . . . . . . . . . 43 . . . . . . . . . . . . . . . . Triggered . | . . . . . . . . . . . . . . . . . . . . . . . . . . . . . . . . . Disarmed 3 | . . . . . . . . . . . . . . . . 3 . . . . . . . . . . . . . . . . Reprogrammed 34 | . 1 . . . . . 4 . 6 . . . . . . 4 . . . . 6 . 6 . . . . . . 6 . 1 Reused 13 | . 1 . . . . . . . . . . . . 4 . . . . . . 1 . 1 . . . . . . . . 6 Traps Extracted 11 | . . . . . . . 4 . . . . . . . . 4 . . . . . . . . . . . . . . . 3 Installed 17 | . . . . . . . . . . . 1 . . 4 . . . . . . . . . . . . . . . . . 12 Triggered 17 | . 1 . . . . . . . . . . . . 4 . . . . . . 1 . 1 . . . . . . . . 10 Most Traps Carried 5 | . . . . . . 1 5 5 5 5 5 4 4 4 . 4 4 4 4 4 4 4 4 4 4 4 4 4 4 4 4 5 Objects Rigged 13 | . . . . . . . 13 . . . . . . . . . . . . . . . . . . . . . . . . . Exploded 2 | . . . . . . . 2 . . . . . . . . . . . . . . . . . . . . . . . . . Machines | -11 -10 -10 -9 -9 -9 -9 -6 -6 -6 -6 -6 -6 -5 -5 -5 -5 -5 -5 -5 -4 -4 -4 -4 -4 -4 -4 -3 -3 -3 -2 -2 -2 ---------- Run | Yrd Mat Min Mat Sto Rec Scr Fac Was Fac Low Low Zio Pro Fac Was Fac Upp Upp Zhi Pro Fac Was Fac Upp Upp War Pro Res Tes Res Qua Frg Machines Disabled 161 | . 1 3 3 5 1 . 11 . . . 1 . 1 4 . 3 . . . . 27 . 2 . . 3 . . 5 . 3 88 Max in Single Turn 14 | . 1 1 2 1 1 . 6 . . . 1 . 1 1 . 1 . . . . 6 . 1 . . 2 . . 1 . 1 14 Garrison Access 14 | . . . . 1 . . 2 . 1 . . . . 1 . . . . . . 3 . 3 . . . . 1 . . 1 1 Machines Repaired . | . . . . . . . . . . . . . . . . . . . . . . . . . . . . . . . . . Machines Dismantled 1 | . . . . 1 . . . . . . . . . . . . . . . . . . . . . . . . . . . . Machines Sabotaged . | . . . . . . . . . . . . . . . . . . . . . . . . . . . . . . . . . Overloaded Fab Kills . | . . . . . . . . . . . . . . . . . . . . . . . . . . . . . . . . . Hacking | -11 -10 -10 -9 -9 -9 -9 -6 -6 -6 -6 -6 -6 -5 -5 -5 -5 -5 -5 -5 -4 -4 -4 -4 -4 -4 -4 -3 -3 -3 -2 -2 -2 --------- Run | Yrd Mat Min Mat Sto Rec Scr Fac Was Fac Low Low Zio Pro Fac Was Fac Upp Upp Zhi Pro Fac Was Fac Upp Upp War Pro Res Tes Res Qua Frg Machines Accessed 249 | . 9 . 12 13 9 3 35 . 20 . 1 1 . 19 . 10 . 1 4 1 28 . 25 1 . 7 . 8 9 2 13 18 Terminals 117 | . 6 . 8 9 6 . 14 . 8 . . . . 6 . 5 . 1 . 1 13 . 12 . . . . 4 5 2 8 9 Fabricators 24 | . . . . . . . 6 . 3 . . . . 1 . 1 . . . . 4 . 4 . . . . 1 . . . 4 Repair Stations 19 | . 1 . 2 2 . . 3 . 2 . . . . 2 . 1 . . . . 2 . . . . . . . 2 . 2 . Recycling Units 38 | . 2 . . 1 3 . 8 . 4 . . . . 6 . 1 . . . . 4 . 5 . . . . 1 . . . 3 Scanalyzers 18 | . . . 2 . . . 2 . 2 . . . . 2 . 1 . . . . 2 . 1 . . . . 1 2 . 2 1 Garrison Access 16 | . . . . 1 . . 2 . 1 . . . . 2 . 1 . . . . 3 . 3 . . . . 1 . . 1 1 Total Hacks 656 | . 25 . 39 44 25 27 81 . 46 . 1 3 . 51 . 27 . 1 14 1 70 . 74 1 . 19 . 19 20 6 28 34 Successful 446 | . 11 . 24 23 14 27 50 . 32 . 1 3 . 36 . 7 . 1 14 1 47 . 49 1 . 19 . 11 17 6 28 24 Failed 209 | . 14 . 15 21 11 . 31 . 13 . . . . 15 . 20 . . . . 23 . 25 . . . . 8 3 . . 10 Catastrophic 28 | . 5 . 3 2 1 . . . 2 . . . . . . 4 . . . . 3 . 2 . . . . 2 . . . 4 Database Lockouts 1 | . . . . . . . . . 1 . . . . . . . . . . . . . . . . . . . . . . . Manual 277 | . 11 . 21 20 16 . 43 . 11 . 1 . . 30 . 7 . . . . 39 . 36 . . 1 . 6 7 3 14 11 Terminals 315 | . 16 . 27 34 16 . 36 . 17 . . . . 21 . 14 . 1 . 1 34 . 35 . . . . 11 12 6 20 14 Fabricators 79 | . . . . . . . 16 . 10 . . . . 3 . 5 . . . . 15 . 19 . . . . 4 . . . 7 Repair Stations 42 | . 3 . 5 6 . . 7 . 3 . . . . 3 . 2 . . . . 5 . . . . . . . 4 . 4 . Recycling Units 85 | . 6 . . 2 9 . 11 . 9 . . . . 15 . 3 . . . . 9 . 12 . . . . 1 . . . 8 Scanalyzers 46 | . . . 7 . . . 7 . 6 . . . . 5 . 1 . . . . 4 . 5 . . . . 2 4 . 3 2 Garrison Access 24 | . . . . 2 . . 4 . 1 . . . . 4 . 2 . . . . 3 . 3 . . . . 1 . . 1 3 Terminal Hacks 167 | . 6 . 8 5 2 27 10 . 7 . 1 3 . 5 . 2 . 1 14 1 9 . 13 1 . 19 . 4 6 4 10 9 Record 50 | . . . . . . 26 . . . . . . . . . . . 1 5 1 . . . . . 13 . . . . . 4 Part Schematic 13 | . 1 . . . . . . . . . . 3 . . . . . . 4 . 1 . . . . . . 1 1 . 2 . Robot Schematic 1 | . 1 . . . . . . . . . . . . . . . . . . . . . . . . . . . . . . . Robot Analysis 4 | . . . 1 . 1 . . . 1 . . . . . . . . . 1 . . . . . . . . . . . . . Prototype ID Bank 13 | . 1 . 3 . . . . . . . . . . . . . . . 4 . 1 . . . . 4 . . . . . . Open Door 6 | . . . . 2 . . . . . . 1 . . . . . . . . . . . . 1 . 2 . . . . . . Level Access Points 3 | . . . . . . . . . . . . . . . . . . . . . . . 1 . . . . . . . 1 1 Branch Access Points 4 | . . . . . . . . . . . . . . 1 . 1 . . . . . . 1 . . . . . . 1 . . Machine Index 4 | . . . . . . . . . 1 . . . . . . . . . . . . . 1 . . . . 1 . . 1 . Terminal Index 5 | . . . . . 1 . 1 . 1 . . . . . . . . . . . 1 . . . . . . . . 1 . . Scanalyzer Index 2 | . . . 1 . . . . . . . . . . . . . . . . . 1 . . . . . . . . . . . Alert Level 1 | . . . . . . . . . . . . . . . . . . . . . . . . . . . . . 1 . . . Unreport Threat 6 | . . . 1 2 . . . . . . . . . . . . . . . . . . 1 . . . . . 1 . 1 . Locate Traps 13 | . 2 . . 1 . . 2 . 1 . . . . . . 1 . . . . . . 2 . . . . 1 2 . 1 . Reprogram Traps 7 | . 1 . . . . . 1 . 1 . . . . . . . . . . . 1 . 1 . . . . . . 1 . 1 Recall Investigation 7 | . . . . . . . 1 . . . . . . 2 . . . . . . 2 . 2 . . . . . . . . . Recall Extermination 7 | . . . . . . . 2 . . . . . . 1 . . . . . . 1 . 1 . . . . . 1 . 1 . Recall Reinforcements 2 | . . . . . . . . . . . . . . 1 . . . . . . . . 1 . . . . . . . . . Recall Assault 1 | . . . . . . . . . . . . . . . . . . . . . . . 1 . . . . . . . . . Hauler Manifests 4 | . . . . . . . 1 . . . . . . . . . . . . . . . 1 . . . . 1 . . 1 . Registered Components 3 | . . . 1 . . . . . . . . . . . . . . . . . 1 . . . . . . . . . 1 . Registered Prototypes 2 | . . . . . . . 1 . . . . . . . . . . . . . . . . . . . . . . 1 . . Zone Layout 7 | . . . 1 . . . 1 . 2 . . . . . . . . . . . . . . . . . . . . . 1 2 Proto ID Catalog 2 | . . . . . . 1 . . . . . . . . . . . . . . . . . . . . . . . . . 1 Fabricator Hacks 30 | . . . . . . . 3 . 6 . . . . 1 . 1 . . . . 7 . 6 . . . . 2 . . . 4 Network Status 5 | . . . . . . . 2 . 1 . . . . 1 . . . . . . 1 . . . . . . . . . . . Load Schematic 13 | . . . . . . . . . 2 . . . . . . 1 . . . . 4 . 3 . . . . 1 . . . 2 Build 12 | . . . . . . . 1 . 3 . . . . . . . . . . . 2 . 3 . . . . 1 . . . 2 Repair Station Hacks 31 | . 2 . 4 6 . . 5 . 1 . . . . 2 . 1 . . . . 2 . . . . . . . 4 . 4 . Scan Component 15 | . 1 . 2 3 . . 2 . . . . . . 1 . 1 . . . . 1 . . . . . . . 2 . 2 . Repair 14 | . 1 . 2 3 . . 2 . . . . . . 1 . . . . . . 1 . . . . . . . 2 . 2 . Refit 2 | . . . . . . . 1 . 1 . . . . . . . . . . . . . . . . . . . . . . . Recycling Unit Hacks 37 | . 3 . . 1 3 . 2 . 5 . . . . 7 . 1 . . . . 4 . 7 . . . . . . . . 4 Report Inventory 24 | . 1 . . . . . 2 . 4 . . . . 6 . 1 . . . . 3 . 6 . . . . . . . . 1 Retrieve Components 13 | . 2 . . 1 3 . . . 1 . . . . 1 . . . . . . 1 . 1 . . . . . . . . 3 Scanalyzer 34 | . . . 4 . . . 6 . 5 . . . . 4 . . . . . . 3 . 4 . . . . 1 3 . 3 1 Insert Component 16 | . . . 2 . . . 3 . 1 . . . . 2 . . . . . . 1 . 2 . . . . . 2 . 2 1 Analyze 11 | . . . 1 . . . 2 . 2 . . . . 2 . . . . . . 1 . 2 . . . . . 1 . . . Retrieve Study 7 | . . . 1 . . . 1 . 2 . . . . . . . . . . . 1 . . . . . . 1 . . 1 . Garrison Access Hacks 12 | . . . . 1 . . 1 . 1 . . . . 1 . . . . . . 3 . 3 . . . . 1 . . 1 . Seal Access 12 | . . . . 1 . . 1 . 1 . . . . 1 . . . . . . 3 . 3 . . . . 1 . . 1 . Unauthorized Hacks 135 | . . . 8 10 9 . 23 . 7 . . . . 16 . 2 . . . . 19 . 16 . . . . 3 4 2 10 6 Terminals 78 | . . . 8 10 6 . 12 . 1 . . . . 7 . 2 . . . . 9 . 4 . . . . 1 3 2 10 3 Track 6 | . . . . . . . 1 . 1 . . . . . . . . . . . . . . . . . . . . 1 . 3 Assimilate 10 | . . . . 1 . . 3 . . . . . . 1 . 1 . . . . 2 . . . . . . . . . 2 . Botnet 23 | . . . 2 2 2 . 2 . . . . . . 2 . 1 . . . . 2 . 2 . . . . 1 3 1 3 . Detonate 1 | . . . . . . . 1 . . . . . . . . . . . . . . . . . . . . . . . . . Operators 5 | . . . 1 1 . . . . . . . . . . . . . . . . 1 . 1 . . . . . . . 1 . Skim 33 | . . . 5 6 4 . 5 . . . . . . 4 . . . . . . 4 . 1 . . . . . . . 4 . Fabricators 22 | . . . . . . . 3 . 2 . . . . 2 . . . . . . 7 . 7 . . . . 1 . . . . Report 4 | . . . . . . . 1 . . . . . . 1 . . . . . . 1 . 1 . . . . . . . . . Prioritize 7 | . . . . . . . . . 1 . . . . . . . . . . . 2 . 3 . . . . 1 . . . . Liberate 3 | . . . . . . . 1 . . . . . . . . . . . . . 1 . 1 . . . . . . . . . Haulers 5 | . . . . . . . 1 . 1 . . . . 1 . . . . . . 1 . 1 . . . . . . . . . Recompile 3 | . . . . . . . . . . . . . . . . . . . . . 2 . 1 . . . . . . . . . Repair Stations 1 | . . . . . . . . . . . . . . 1 . . . . . . . . . . . . . . . . . . Patch 1 | . . . . . . . . . . . . . . 1 . . . . . . . . . . . . . . . . . . Recycling Units 32 | . . . . . 3 . 7 . 4 . . . . 6 . . . . . . 3 . 5 . . . . 1 . . . 3 Tunnel 3 | . . . . . 3 . . . . . . . . . . . . . . . . . . . . . . . . . . . Fedlink 27 | . . . . . . . 7 . 4 . . . . 6 . . . . . . 3 . 5 . . . . 1 . . . 1 Scraphulk 2 | . . . . . . . . . . . . . . . . . . . . . . . . . . . . . . . . 2 Scanalyzers 1 | . . . . . . . . . . . . . . . . . . . . . . . . . . . . . 1 . . . Researchers 1 | . . . . . . . . . . . . . . . . . . . . . . . . . . . . . 1 . . . Garrison Access 1 | . . . . . . . 1 . . . . . . . . . . . . . . . . . . . . . . . . . Jam 1 | . . . . . . . 1 . . . . . . . . . . . . . . . . . . . . . . . . . Data Cores Recovered 5 | . . . . . . . 2 . . . . . . . . . . . . . 1 . . . . . . . . . 1 1 Used 2 | . . . . . . . 1 . . . . . . . . . . . . . . . . . . . . . . . . 1 Hacking Detections 179 | . 8 . 11 13 6 . 25 . 15 . . . . 13 . 10 . . . . 21 . 18 . . . . 6 8 2 9 14 Full Trace Events 17 | . . . 3 1 1 . 2 . 1 . . . . 1 . 1 . . . . 2 . 2 . . . . . . . . 3 Feedback Events 2 | . . . . . . . 1 . . . . . . . . . . . . . 1 . . . . . . . . . . . Corruption 1 | . . . . . . . 1 . . . . . . . . . . . . . . . . . . . . . . . . . Hackware Fried 1 | . . . . . . . . . . . . . . . . . . . . . 1 . . . . . . . . . . . Feedback Blocked . | . . . . . . . . . . . . . . . . . . . . . . . . . . . . . . . . . Robot Schematics Acquired 57 | . 1 . . . . . . . . . . 4 . 49 . . . . . . . . . . . . . . . . 1 2 Robots Built 9 | . . . . . . . . . 4 . . . . . . . . . . . . . 4 . . . . . . . . 1 Authchips . | . . . . . . . . . . . . . . . . . . . . . . . . . . . . . . . . . Time 391 | . . . . . . . . . 40 . . . . . . . . . . . . . 289 . . . . . . . . 62 Total Robot Build Rating 41 | . . . . . . . . . 4 . . . . . . . . . . . . . 30 . . . . . . . . 7 Part Schematics Acquired 71 | . 1 . 1 . . . 2 . 1 . . 16 . 1 . . . . 4 . 2 . 1 . . . . 1 12 . 18 11 Parts Built 9 | . . . . . . . 2 . 2 . . . . . . . . . . . 2 . 1 . . . . 1 . . . 1 Authchips 4 | . . . . . . . . . 1 . . . . . . . . . . . 1 . 1 . . . . 1 . . . . Time 842 | . . . . . . . 58 . 266 . . . . . . . . . . . 277 . 74 . . . . 93 . . . 74 Total Part Build Rating 72 | . . . . . . . 14 . 15 . . . . . . . . . . . 18 . 9 . . . . 7 . . . 9 Part Studies Acquired 7 | . . . 1 . . . 1 . 2 . . . . . . . . . . . 1 . . . . . . 1 . . 1 . Parts Repaired 14 | . 1 . 2 3 . . 2 . . . . . . 1 . . . . . . 1 . . . . . . . 2 . 2 . Time 616 | . 38 . 168 96 . . 77 . . . . . . 38 . . . . . . 54 . . . . . . . 73 . 72 . Parts Recycled . | . . . . . . . . . . . . . . . . . . . . . . . . . . . . . . . . . Recycled Matter . | . . . . . . . . . . . . . . . . . . . . . . . . . . . . . . . . . Retrieved Matter . | . . . . . . . . . . . . . . . . . . . . . . . . . . . . . . . . . Retrieved Components 56 | . 11 . . 8 19 . . . 2 . . . . 7 . . . . . . . . 3 . . . . . . . . 6 Parts Scanalyzed 10 | . . . 1 . . . 2 . 1 . . . . 2 . . . . . . 1 . 1 . . . . . 1 . . 1 Part Schematics Acquired 8 | . . . 1 . . . 2 . 1 . . . . 1 . . . . . . 1 . 1 . . . . . 1 . . . Parts Damaged 3 | . . . 1 . . . . . 1 . . . . . . . . . . . 1 . . . . . . . . . . . Bothacking | -11 -10 -10 -9 -9 -9 -9 -6 -6 -6 -6 -6 -6 -5 -5 -5 -5 -5 -5 -5 -4 -4 -4 -4 -4 -4 -4 -3 -3 -3 -2 -2 -2 ------------ Run | Yrd Mat Min Mat Sto Rec Scr Fac Was Fac Low Low Zio Pro Fac Was Fac Upp Upp Zhi Pro Fac Was Fac Upp Upp War Pro Res Tes Res Qua Frg Used RIF Installer . | . . . . . . . . . . . . . . . . . . . . . . . . . . . . . . . . . Robots Hacked 22 | . . . . . . 3 2 . . . . 1 . 3 . . . . 3 . 6 . . . . . . . 4 . . . Non-combat 12 | . . . . . . 1 2 . . . . . . 3 . . . . . . 6 . . . . . . . . . . . Combat 6 | . . . . . . 2 . . . . . 1 . . . . . . 3 . . . . . . . . . . . . . Robot Hacks Applied 18 | . . . . . . 3 2 . . . . 1 . 3 . . . . 3 . 6 . . . . . . . . . . . parse_system 8 | . . . . . . 3 . . . . . 1 . . . . . . 3 . 1 . . . . . . . . . . . find_chute 9 | . . . . . . . 2 . . . . . . 3 . . . . . . 4 . . . . . . . . . . . find_recycling 1 | . . . . . . . . . . . . . . . . . . . . . 1 . . . . . . . . . . . Manual 4 | . . . . . . . . . . . . . . . . . . . . . . . . . . . . . 4 . . . Relay Couplers Released 2 | . . . . . . . . . . . . . . . . . . . . . . . . . . . . . . . . 2 Machine Destruction 2 | . . . . . . . . . . . . . . . . . . . . . . . . . . . . . . . . 2 Fabnet Peak Effective % . | . . . . . . . . . . . . . . . . . . . . . . . . . . . . . . . . . Robots Rewired 10 | . . . . . . . . . . . . . . 3 . . . . . . 1 . . . . 5 . . . . . 1 Allies Hacked 3 | . . . . . . . 1 . . . . . . . . . . . . . . . 1 . . . . . . . . 1 Hacks Repelled . | . . . . . . . . . . . . . . . . . . . . . . . . . . . . . . . . . Allies | -11 -10 -10 -9 -9 -9 -9 -6 -6 -6 -6 -6 -6 -5 -5 -5 -5 -5 -5 -5 -4 -4 -4 -4 -4 -4 -4 -3 -3 -3 -2 -2 -2 -------- Run | Yrd Mat Min Mat Sto Rec Scr Fac Was Fac Low Low Zio Pro Fac Was Fac Upp Upp Zhi Pro Fac Was Fac Upp Upp War Pro Res Tes Res Qua Frg Total Allies 65 | . . . . . . . 2 20 4 . . . . 4 . . . . . . 3 19 4 . . 5 . . . . . 4 Largest Group 20 | . . . . . . . 1 20 5 . . . . 4 . . . . . . 2 19 15 . . 5 . . . . . 3 Highest-Rated Group 733 | . . . . . . . 26 733 230 . . . . 153 . . . . . . 112 684 532 . . 289 . . . . . 365 Highest-Rated Ally 139 | . . . . . . . 26 50 46 . . . . 49 . . . . . . 56 50 82 . . 64 . . . . . 139 Total Orders 70 | . . . . . . . . . 4 . . . . 6 . . . . . . 8 . . . . 10 . . . . . 42 STAY 28 | . . . . . . . . . . . . . . 3 . . . . . . 4 . . . . 9 . . . . . 12 ROAM 3 | . . . . . . . . . 1 . . . . . . . . . . . 1 . . . . . . . . . . 1 FOLLOW 12 | . . . . . . . . . . . . . . 3 . . . . . . 3 . . . . 1 . . . . . 5 GUARD 2 | . . . . . . . . . . . . . . . . . . . . . . . . . . . . . . . . 2 AID 1 | . . . . . . . . . . . . . . . . . . . . . . . . . . . . . . . . 1 PICKUP 1 | . . . . . . . . . . . . . . . . . . . . . . . . . . . . . . . . 1 EXPLORE 3 | . . . . . . . . . 3 . . . . . . . . . . . . . . . . . . . . . . . RETURN 20 | . . . . . . . . . . . . . . . . . . . . . . . . . . . . . . . . 20 Ally Attacks 516 | . . . . . . . . 136 28 . . . . 15 . . . . . . 16 85 124 . . 32 . . . . . 80 Total Damage 19152 | . . . . . . . . 5606 630 . . . . 759 . . . . . . 721 3011 3065 . . 1214 . . . . . 4146 Kills 73 | . . . . . . . . 15 2 . . . . 3 . . . . . . 2 7 22 . . 4 . . . . . 18 Allies Corrupted 4 | . . . . . . . . . . . . . . 1 . . . . . . 1 . . . . . . . . . . 2 Allies Melted 5 | . . . . . . . . . . . . . . . . . . . . . . . . . . . . . . . . 5 Intel | -11 -10 -10 -9 -9 -9 -9 -6 -6 -6 -6 -6 -6 -5 -5 -5 -5 -5 -5 -5 -4 -4 -4 -4 -4 -4 -4 -3 -3 -3 -2 -2 -2 ------- Run | Yrd Mat Min Mat Sto Rec Scr Fac Was Fac Low Low Zio Pro Fac Was Fac Upp Upp Zhi Pro Fac Was Fac Upp Upp War Pro Res Tes Res Qua Frg Active Infowar (turns) 25372 | 21 882 . 743 . . . 1436 281 1215 108 228 637 414 1597 33 475 130 227 109 309 1700 202 772 230 218 615 483 427 569 145 426 10740 Optics 11532 | . . . 279 . . . . . . . . . 1 . . . . . . . . . . . . . . . . 86 426 10740 Sensors 13436 | . . . 1 . . . 1415 . 734 108 228 637 411 1591 33 475 130 227 109 309 1643 202 772 230 218 615 483 398 531 136 385 1415 Terrain 1367 | 21 882 . 464 . . . . . . . . . . . . . . . . . . . . . . . . . . . . . Structural 4847 | . . . . . . . 11 . 37 . . . . 8 . 5 75 126 2 . 1403 139 573 230 218 97 467 173 552 145 222 364 Traps 2 | . . . . . . . . . . . . . 2 . . . . . . . . . . . . . . . . . . . T.N.C. 2403 | . . . . . . . 784 281 448 . . . . 514 33 343 . . . . . . . . . . . . . . . . Cloaking 5601 | . . . . . . . . . . . . . . . . . . . . . . . . . . . . . . . . 5601 Jamming 2543 | . . . . . . . 30 . 88 . 2 2 . 1 . . . . 82 309 1138 202 403 . . 1 . 116 169 . . . ECM 1 | . . . . . . . 1 . . . . . . . . . . . . . . . . . . . . . . . . . Robot Analysis Total 103 | . . . 1 . 1 . . . 1 . . . . 99 . . . . 1 . . . . . . . . . . . . . Derelict Logs Recovered 17 | . . 2 . . . . . . . 2 2 3 3 . . . 1 1 . . . . . 2 1 . . . . . . . Drone Launches 59 | . . . . . . . . . 4 . . . . . . . . . . . . . . . . . . . . . . 55 Drone Recoveries 48 | . . . . . . . . . 2 . . . . . . . . . . . . . . . . . . . . . . 46 Exploration | -11 -10 -10 -9 -9 -9 -9 -6 -6 -6 -6 -6 -6 -5 -5 -5 -5 -5 -5 -5 -4 -4 -4 -4 -4 -4 -4 -3 -3 -3 -2 -2 -2 ------------- Run | Yrd Mat Min Mat Sto Rec Scr Fac Was Fac Low Low Zio Pro Fac Was Fac Upp Upp Zhi Pro Fac Was Fac Upp Upp War Pro Res Tes Res Qua Frg Turns Passed 37969 | 136 1385 1341 3271 2363 1786 3061 1554 281 1466 108 228 852 429 1898 33 475 130 227 109 309 1700 202 772 230 218 615 483 427 569 145 426 10740 Spaces Moved 48010 | 100 631 727 1218 812 716 2282 2967 462 1995 339 725 1457 839 3890 129 1154 463 623 194 783 3128 451 1900 631 662 1550 838 1130 1833 576 1561 11244 Core 12 | 7 . . . . . 3 . . . . . . . 2 . . . . . . . . . . . . . . . . . . Treads 566 | . . . 1 . . 324 . . . . . . . . . . . . . . . . . . . . . . . . . 241 Legs 2868 | . . . . . . . . . . . . . . . . . . . . . . . . . . . . . . . . 2868 Wheels 5504 | 93 631 727 1217 812 716 1308 . . . . . . . . . . . . . . . . . . . . . . . . . . Hover 6194 | . . . . . . . . . . . . . . . . . . . . . . . . . . . . . . . . 6194 Flight 32866 | . . . . . . 647 2967 462 1995 339 725 1457 839 3888 129 1154 463 623 194 783 3128 451 1900 631 662 1550 838 1130 1833 576 1561 1941 Fastest Speed 8 | 50 100 175 135 215 215 34 26 26 26 28 28 28 28 16 18 18 18 19 19 19 19 21 11 16 16 8 11 12 12 8 8 8 Average Speed 52 | 96 170 175 212 227 229 130 27 33 30 28 28 37 29 23 18 18 18 19 19 19 20 21 17 16 16 14 16 15 15 15 12 62 Slowest Speed 480 | 100 175 175 480 230 230 320 98 97 93 28 28 93 93 150 18 105 19 104 20 19 106 21 21 16 16 99 88 16 16 16 104 360 Overloaded Moves 130 | . . . . . . . . . . . . . . 2 . . . . . . 30 . . . . 5 3 . . 10 10 70 Propulsion Burnouts . | . . . . . . . . . . . . . . . . . . . . . . . . . . . . . . . . . Robots Hopped 127 | . . . . . . . 20 4 . . . . . 25 4 4 . . . . 19 . 2 . . . . 10 7 2 23 7 Potential Cave-ins 10 | . . . . . . . . . . . . . . . . . 1 . . . . . . . . . . . . . . 9 Cave-ins Triggered 1 | . . . . . . . . . . . . . . . . . . . . . . . . . . . . . . . . 1 Teleports 1 | . . . . . . . . . . . . . . . . . . . . . . . . . . . . . . . . 1 Exploration Rate (%) 71 | 4 96 99 72 94 94 86 67 95 47 62 78 85 84 43 83 23 62 81 60 79 65 91 51 90 83 92 88 28 94 13 92 90 Regions Visited 32 Branch Regions 19 Pre-discovered Areas 26 | . . 1 2 3 3 6 2 . . 1 . 3 . . . . 1 1 3 . . . . . . . . . . . . . Known Exits Taken 20 | . . . 1 . . . . . 1 1 1 1 1 . . 1 1 1 1 1 . . 1 1 1 1 1 1 1 1 1 . Unknown Exits Taken 6 | 1 1 1 . 1 1 1 . . . . . . . . . . . . . . . . . . . . . . . . . . Scrap Searched 27 | . . 1 . . . 4 . . . 2 2 3 3 . . . 2 3 . 1 . . . 3 2 . 1 . . . . . Spaces Dug 335 | . . . . . 5 . 55 . 33 2 1 . 16 44 . 5 3 2 . 12 63 . 18 3 2 . 6 11 16 9 11 18 Terrain Destroyed 3079 | . . . . . 18 . 149 . 35 2 1 . 16 65 . 5 4 3 . 17 134 101 20 4 3 77 7 12 20 9 11 2366 Melee 278 | . . . . . . . 52 . 32 2 1 . 16 44 . 5 2 1 . 7 41 . 16 3 2 . 5 6 13 9 11 10 Projectile 192 | . . . . . 18 . 8 . 3 . . . . . . . 2 2 . 10 10 . 4 1 1 . 2 6 7 . . 118 AOE 2609 | . . . . . . . 89 . . . . . . 21 . . . . . . 83 101 . . . 77 . . . . . 2238 Terrain Rammed . | . . . . . . . . . . . . . . . . . . . . . . . . . . . . . . . . . Walls Destroyed . | . . . . . . . . . . . . . . . . . . . . . . . . . . . . . . . . . Machines Disabled . | . . . . . . . . . . . . . . . . . . . . . . . . . . . . . . . . . Actions | -11 -10 -10 -9 -9 -9 -9 -6 -6 -6 -6 -6 -6 -5 -5 -5 -5 -5 -5 -5 -4 -4 -4 -4 -4 -4 -4 -3 -3 -3 -2 -2 -2 --------- Run | Yrd Mat Min Mat Sto Rec Scr Fac Was Fac Low Low Zio Pro Fac Was Fac Upp Upp Zhi Pro Fac Was Fac Upp Upp War Pro Res Tes Res Qua Frg Total 58045 | 124 809 767 1609 1139 805 2371 3533 561 2754 344 740 1747 986 4659 129 1380 499 718 257 917 4023 545 2270 750 768 1926 1172 1337 2037 608 1711 14050 Wait 6461 | 1 68 13 127 152 39 3 315 80 599 . . 260 76 533 . 133 28 78 35 110 731 75 297 111 102 314 316 176 118 12 112 1447 Move 47741 | 99 630 726 1217 811 715 2281 2930 454 1994 338 724 1456 838 3841 122 1145 462 622 193 782 3092 450 1895 630 661 1549 837 1110 1819 571 1516 11231 Hop 112 | . . . . . . . 17 3 . . . . . 24 2 4 . . . . 17 . 2 . . . . 9 6 2 21 5 Pick Up 363 | 9 22 4 27 14 7 32 32 1 8 1 2 3 10 35 1 4 . 2 5 . 11 1 7 . . 8 1 1 8 2 5 100 Fast Attach 262 | 7 1 . 11 7 . 17 13 5 19 . 2 4 12 33 . 8 1 2 4 . 16 2 2 . . 7 2 1 6 3 3 74 Attach 194 | . 5 . 7 . 1 1 18 . 9 . . 4 2 8 . 1 2 1 1 . 9 1 7 . . 2 1 9 5 2 1 97 Detach 100 | . . . . . 1 2 6 . 7 . . 3 . 4 . . 1 1 . . 2 1 2 . . . 1 7 2 . 1 59 Swap 320 | . 8 2 24 21 5 3 29 . 7 . . 3 4 15 . 13 . 3 2 6 23 3 5 5 2 5 3 . 6 . 4 119 Drop 501 | 1 4 6 41 27 8 29 42 7 21 1 5 7 21 30 1 10 1 3 8 . 24 3 6 . . 13 3 . 13 3 8 155 Fire 971 | 7 70 16 154 86 29 . 22 11 3 . . . . . . . 2 2 . 10 12 5 4 1 1 10 2 6 15 . . 503 Melee 809 | . . . . 13 . 3 94 . 57 4 6 7 23 132 3 19 2 4 9 9 86 4 43 3 2 . 6 18 39 13 40 170 Ram 2 | . 1 . 1 . . . . . . . . . . . . . . . . . . . . . . . . . . . . . Kick . | . . . . . . . . . . . . . . . . . . . . . . . . . . . . . . . . . Crush . | . . . . . . . . . . . . . . . . . . . . . . . . . . . . . . . . . Escape Stasis 116 | . . . . . . . 15 . 30 . . . . . . . . . . . . . . . . . . . . . . 71 Rewire 25 | . . . . . . . . . . . . . . . . . . . . . . . . . . 18 . . . . . 7 Trap 60 | . . . . . . . . . . . 1 . . 4 . 43 . . . . . . . . . . . . . . . 12 Miscellaneous 8 | . . . . 8 . . . . . . . . . . . . . . . . . . . . . . . . . . . . Route ------- -11/Scrapyard -10/Materials (discovered 5 exits: *Mat x3 / [*Min] / [*Sub]) -10/Mines (discovered 2 exits: *Mat x2) -9/Materials (discovered 6 exits: *Mat x3 / *Min x2 / *Sto) -9/Storage (discovered 2 exits: *Mat / *Rec) -9/Recycling (discovered 2 exits: [*Fac] / *Scr) -9/Scraptown (discovered 2 exits: *Fac x2) -6/Factory (discovered 6 exits: *Fac x4 / *Low x2) -6/Waste -6/Factory (discovered 3 exits: *Fac x2 / *Low) -6/Lower Caves -6/Lower Caves (discovered 2 exits: Fac / *Zio) -6/Zion (discovered 2 exits: Dee / *Pro) -5/Proximity Caves -5/Factory (discovered 5 exits: Fac / *Upp x2 / *Ext x2) -5/Waste -5/Factory (discovered 4 exits: *Upp x2 / Ext x2) -5/Upper Caves -5/Upper Caves -5/Zhirov -4/Proximity Caves -4/Factory (discovered 6 exits: *Res x4 / *Upp x2) -4/Waste -4/Factory (discovered 6 exits: *Res x4 / *Upp x2) -4/Upper Caves -4/Upper Caves (discovered 2 exits: *Res / *War) -4/Warlord -3/Proximity Caves -3/Research (discovered 4 exits: Res x2 / Arm / *Tes) -3/Testing -2/Research (discovered 3 exits: Acc / *Qua x2) -2/Quarantine (discovered 3 exits: *Acc / [*Sec] / *Frg) -2/Protoforge (discovered 1 exit: *Acc) History --------- Turn | Location | Event 5 | -11/Scrapyard | Discovered new exit (range 16) 137 | -11/Scrapyard | Entered Materials 255 | -10/Materials | Discovered new exit (range 15) 303 | -10/Materials | Build established: Mutant 526 | -10/Materials | Discovered new exit (range 15) 716 | -10/Materials | Discovered new exit (range 14) 986 | -10/Materials | Discovered new exit (range 11) 1063 | -10/Materials | Core integrity fell below 50% 1150 | -10/Materials | Discovered new exit (range 11) 1265 | -10/Materials | Repaired Imp. Terrain Scanner 1522 | -10/Materials | Entered Mines 1538 | -10/Mines | Met a Derelict bent on vengeance 1627 | -10/Mines | Found a damaged Exp. Sensor Array with a note attached 1632 | -10/Mines | Found Prototype Device 1749 | -10/Mines | Learned Materials stockpile data 1836 | -10/Mines | Discovered new exit (range 5) 2043 | -10/Mines | Discovered new exit (range 15) 2210 | -10/Mines | Learned location of Zion (-6) 2249 | -10/Mines | Joined a pair of Derelicts in attacking an 0b10 outpost 2863 | -10/Mines | Entered Materials 2863 | -9/Materials | Evolved 2 slots: Propulsion x1, Utility x1 2940 | -9/Materials | Identified Exp. Sensor Array 3317 | -9/Materials | Build established: Scavenger-Mutant 3318 | -9/Materials | Discovered new exit (range 12) 3636 | -9/Materials | Build established: Mutant 3836 | -9/Materials | Discovered new exit (range 9) 3919 | -9/Materials | Discovered new exit (range 15) 4121 | -9/Materials | Discovered new exit (range 16) 4134 | -9/Materials | Build established: Scavenger-Mutant 4779 | -9/Materials | Build established: Mutant 5193 | -9/Materials | Discovered new exit (range 10) 5201 | -9/Materials | Identified exit to Mines 5285 | -9/Materials | Learned location of 1 exit from Storage 5313 | -9/Materials | Learned Storage stockpile data 5330 | -9/Materials | Learned location of Recycling (-9) 5336 | -9/Materials | Learned Storage trap positions 5337 | -9/Materials | Learned Storage emergency access door positions 5341 | -9/Materials | Identified exit to Materials 5354 | -9/Materials | Learned location of 2 exits from Materials 5412 | -9/Materials | Learned Storage trap positions 5440 | -9/Materials | Build established: Scavenger-Mutant 5625 | -9/Materials | Repaired Broken Exp. Sensor Array? 5899 | -9/Materials | Repaired Imp. Treads 6053 | -9/Materials | Build established: Mutant 6132 | -9/Materials | Identified exit to Storage 6134 | -9/Materials | Entered Storage 6136 | -9/Storage | Loaded intel: 8 trap records 6598 | -9/Storage | Core integrity fell below 50% 6686 | -9/Storage | Used back door to open Recycling access 6686 | -9/Storage | Discovered new exit (range 5) 7106 | -9/Storage | Repaired Imp. Treads 7139 | -9/Storage | Repaired Imp. Treads 7492 | -9/Storage | Repaired Autogun 8277 | -9/Storage | Learned location of Armory (-3) 8354 | -9/Storage | Learned Materials terminal intel 8365 | -9/Storage | Learned Storage stockpile data 8366 | -9/Storage | Learned Storage stockpile data 8367 | -9/Storage | Learned Storage trap positions 8386 | -9/Storage | Learned Storage stockpile data 8497 | -9/Storage | Entered Recycling 8978 | -9/Recycling | Discovered new exit (range 7) 9530 | -9/Recycling | Scanned before Scraplab entrance 10262 | -9/Recycling | Entered Scraplab 10279 | -9/Recycling | Discovered new exit (range 3) 10283 | -9/Recycling | Entered Scraptown 10283 | -9/Scraptown | System corruption cleaned by C-Scrubber 10477 | -9/Scraptown | Visited Fellowship of the Rings 10492 | -9/Scraptown | Visited Shadow of the Wyrm 10559 | -9/Scraptown | Visited IN-MT5's Study 11046 | -9/Scraptown | Discovered new exit (range 11) 11233 | -9/Scraptown | Visited UFD Registry 11233 | -9/Scraptown | Registered with UFD as "Flexibrain" 11295 | -9/Scraptown | Visited A0-MCA Data Center 11325 | -9/Scraptown | Visited Research Penetration Think Tank 11372 | -9/Scraptown | Visited Scrap Suit Storage 11402 | -9/Scraptown | Visited Supply Room 11430 | -9/Scraptown | Visited Derelict Rescue Squad 11499 | -9/Scraptown | Visited Chapter 10 11542 | -9/Scraptown | Visited Science Guys 11618 | -9/Scraptown | Visited DA-N13 Charitable Foundation 11638 | -9/Scraptown | Found DCF Scrap (29 items) 12278 | -9/Scraptown | Visited Cartography Club 12342 | -9/Scraptown | Learned location of Storage (-9) 12342 | -9/Scraptown | Learned location of Lower Caves (-7) 12342 | -9/Scraptown | Learned 16 Materials zone layouts 12342 | -9/Scraptown | Learned 20 Factory zone layouts 12342 | -9/Scraptown | Learned 8 Research zone layouts 12342 | -9/Scraptown | Learned 16 Research zone layouts 12342 | -9/Scraptown | Learned 4 Access zone layouts 12342 | -9/Scraptown | Learned 8 Lower Caves zone layouts 12342 | -9/Scraptown | Learned 20 Lower Caves zone layouts 12342 | -9/Scraptown | Learned 8 Proximity Caves zone layouts 12342 | -9/Scraptown | Learned 4 Armory zone layouts 12342 | -9/Scraptown | Learned location of 3 exits from Factory 12342 | -9/Scraptown | Learned location of 1 exit from Lower Caves 12342 | -9/Scraptown | Learned location of 2 exits from Lower Caves 12365 | -9/Scraptown | Found Deep Structural Scanner 12410 | -9/Scraptown | Found DRS Beacon 12576 | -9/Scraptown | Given a B rating by A0-MCA 12578 | -9/Scraptown | Found Unknown Processor 12793 | -9/Scraptown | Visited Cyclists 12798 | -9/Scraptown | Entered Cyclist Reading Room 12804 | -9/Scraptown | Visited Artisan Demo Area 13265 | -9/Scraptown | Met Optimus 13265 | -9/Scraptown | Accepted into 0bPrime 13338 | -9/Scraptown | Discovered new exit (range 5) 13344 | -9/Scraptown | Entered Factory 13344 | -6/Factory | Evolved 6 slots: Power x1, Propulsion x2, Utility x3 13345 | -6/Factory | Identified exit to Lower Caves 13346 | -6/Factory | Identified exit to Factory 13424 | -6/Factory | Repaired Lrg. Storage Unit 13513 | -6/Factory | Found Prototype Launcher 13513 | -6/Factory | Identified Scatter Rocket Array 13743 | -6/Factory | Discovered exit to Factory (range 15) 13836 | -6/Factory | Fabricated Adv. Transmission Jammer (x2) 13853 | -6/Factory | Loaded intel: 8 recycling unit locations 14008 | -6/Factory | Repaired Imp. Flight Unit? 14084 | -6/Factory | Learned location of Protoforge (-2) 14429 | -6/Factory | Build established: Hacker-Scout 14468 | -6/Factory | Learned 4 Proximity Caves zone layouts 14586 | -6/Factory | Learned 4 Lower Caves zone layouts 14670 | -6/Factory | Learned location of 1 exit from Cetus 14719 | -6/Factory | Learned 4 Extension zone layouts 14744 | -6/Factory | Search patrols dispatched 14898 | -6/Factory | Manually triggered Chute Trap 14898 | -6/Factory | Sucked down chute 14898 | -6/Factory | Entered Waste 14899 | -6/Waste | Met a frightened Derelict 14908 | -6/Waste | Spotted C-40 Crusher 14909 | -6/Waste | Spotted C-40 Crusher 14912 | -6/Waste | Spotted C-40 Crusher 14914 | -6/Waste | Spotted C-40 Crusher 14923 | -6/Waste | Lost 3 parts (1p1n1u) 14928 | -6/Waste | Warlord forces began an assault 14962 | -6/Waste | Allies destroyed C-40 Crusher 14971 | -6/Waste | Allies destroyed C-40 Crusher 14983 | -6/Waste | Discovered new exit (range 15) 15011 | -6/Waste | Destroyed C-40 Crusher 15021 | -6/Waste | Spotted C-40 Crusher 15043 | -6/Waste | Allies destroyed C-40 Crusher 15072 | -6/Waste | Lost 13 allies 15150 | -6/Waste | Identified exit to Factory 15179 | -6/Waste | Entered Factory 15179 | -6/Factory | Accompanied by 5 allies 15189 | -6/Factory | Loaded intel: 8 recycling unit locations 15404 | -6/Factory | Lost 3 allies 15428 | -6/Factory | Build established: Hacker-Sprinter 15876 | -6/Factory | Fabricated Exp. Sensor Array (x1) 15928 | -6/Factory | Discovered exit to Factory (range 8) 15930 | -6/Factory | Discovered exit to Lower Caves (range 5) 15964 | -6/Factory | Fabricated K-01 Serf (x4) 15995 | -6/Factory | Fabricated Diametric Drive? 16015 | -6/Factory | Lost 3 allies 16438 | -6/Factory | Spotted B-75 Beast 16458 | -6/Factory | Central database locked down 16620 | -6/Factory | Discovered exit to Factory (range 5) 16645 | -6/Factory | Entered Lower Caves 16646 | -6/Lower Caves | Identified exit to Lower Caves 16723 | -6/Lower Caves | Learned Factory terminal intel 16753 | -6/Lower Caves | Entered another Lower Caves area 16754 | -6/Lower Caves | Identified exit to Zion 16788 | -6/Lower Caves | Learned Factory interactive machine intel 16791 | -6/Lower Caves | Learned location of 1 exit from Factory 16791 | -6/Lower Caves | Found DCF Scrap (10 items) 16829 | -6/Lower Caves | Encountered a Warlord checkpoint 16880 | -6/Lower Caves | Acquired the password to a Derelict Tinkerer's latest research 16896 | -6/Lower Caves | Found Prototype Special Weapon 16981 | -6/Lower Caves | Entered Zion 16982 | -6/Zion | Identified exit to Proximity Caves 16988 | -6/Zion | Found Prototype Device 16988 | -6/Zion | Identified Bomb Factory No. 2 17083 | -6/Zion | Identified exit to Deep Caves 17091 | -6/Zion | Learned location of Warlord (-4) 17093 | -6/Zion | Learned Factory recycling unit intel 17109 | -6/Zion | Turned away by Imprinter 17208 | -6/Zion | Identified Molecular Deconstructor 17226 | -6/Zion | Visited the Megawrench Repair Shop 17431 | -6/Zion | Megawrench repaired 7 parts 17472 | -6/Zion | Found Relay Coupler [Programmer] 17475 | -6/Zion | Found Relay Coupler [Programmer] 17532 | -6/Zion | Attacked by Zionites 17641 | -6/Zion | Destroyed Imprinter 17644 | -6/Zion | Extracted access codes from Imprinter's data core 17833 | -6/Zion | Entered Proximity Caves 17842 | -5/Proximity Caves | Found Alien Artifact 18204 | -5/Proximity Caves | Learned Factory stockpile data 18262 | -5/Proximity Caves | Entered Factory 18262 | -5/Factory | Evolved 2 slots: Utility x2 18263 | -5/Factory | Identified exit to Upper Caves 18264 | -5/Factory | Identified exit to Factory 18266 | -5/Factory | Loaded intel: 56 interactive machine locations 18267 | -5/Factory | Loaded intel: 28 terminal locations 18268 | -5/Factory | Loaded intel: 8 recycling unit locations 18301 | -5/Factory | Loaded intel: 8 recycling unit locations 18304 | -5/Factory | Identified exit to Extension 18784 | -5/Factory | Repaired Lgt. Deuterium Engine? 19038 | -5/Factory | Build established: Hacker-Scout 19240 | -5/Factory | Cargo convoy interrupted 19255 | -5/Factory | Found Prototype Processor 19255 | -5/Factory | Identified Exp. Core Analyzer 19266 | -5/Factory | Unchained authorized (CL-0N3) 19337 | -5/Factory | Found Exp. Core Analyzer 19435 | -5/Factory | K-01 Serf reconstituted as Thunder 19435 | -5/Factory | Spotted Thunder 19462 | -5/Factory | Search patrols dispatched 19475 | -5/Factory | Destroyed Thunder 19475 | -5/Factory | Thunder reconstituted as CL-0N3 19550 | -5/Factory | Build established: Hacker-Sprinter 19916 | -5/Factory | G-50 Soldier reconstituted as Martyr 19927 | -5/Factory | Martyr reconstituted as CL-0N3 19950 | -5/Factory | Build established: Sprinter 19995 | -5/Factory | Destroyed CL-0N3 19997 | -5/Factory | Core integrity fell below 50% 19998 | -5/Factory | Extracted schematics, analyses from CL-0N3's data core 20008 | -5/Factory | Lost 6 parts (1p3n2u) 20037 | -5/Factory | Core integrity fell below 20% 20074 | -5/Factory | Lost 3 parts (2n1u) 20094 | -5/Factory | Destroyed 9 combat bots 20137 | -5/Factory | Lost 3 parts (1p1n1u) 20160 | -5/Factory | Manually triggered Chute Trap 20160 | -5/Factory | Sucked down chute 20160 | -5/Factory | Entered Waste 20167 | -5/Waste | Spotted C-40 Crusher 20175 | -5/Waste | EMP discharged 20175 | -5/Waste | System corruption reached 10% 20180 | -5/Waste | Spotted C-40 Crusher 20181 | -5/Waste | Spotted C-40 Crusher 20183 | -5/Waste | Spotted C-40 Crusher 20188 | -5/Waste | Spotted C-40 Crusher 20189 | -5/Waste | Spotted C-40 Crusher 20190 | -5/Waste | Discovered new exit (range 14) 20192 | -5/Waste | Identified exit to Factory 20193 | -5/Waste | Entered Factory 20416 | -5/Factory | Build established: Scavenger-Scout 20668 | -5/Factory | Entered Upper Caves 20774 | -5/Upper Caves | Discovered new exit (range 16) 20779 | -5/Upper Caves | Identified exit to Upper Caves 20798 | -5/Upper Caves | Entered another Upper Caves area 21012 | -5/Upper Caves | Discovered new exit (range 16) 21021 | -5/Upper Caves | Identified exit to Zhirov 21025 | -5/Upper Caves | Entered Zhirov 21025 | -5/Zhirov | Discovered new exit (range 3) 21026 | -5/Zhirov | Identified exit to Proximity Caves 21029 | -5/Zhirov | Met Zhirov 21046 | -5/Zhirov | Learned location of Quarantine (-2) 21046 | -5/Zhirov | Learned location of Testing (-3) 21046 | -5/Zhirov | Learned location of Command (-1) 21047 | -5/Zhirov | Zhirov requested help retrieving the SGEMP Prototype 21051 | -5/Zhirov | Found Alien Artifact 21051 | -5/Zhirov | Identified Integrated Reactor 21051 | -5/Zhirov | Installed Integrated Reactor, increased core energy generation (+10) 21126 | -5/Zhirov | Found Alien Artifact 21134 | -5/Zhirov | Entered Proximity Caves 21360 | -4/Proximity Caves | Spotted B-86 Titan 21438 | -4/Proximity Caves | Discovered exit to Factory (range 8) 21443 | -4/Proximity Caves | Entered Factory 21443 | -4/Factory | Evolved 2 slots: Utility x2 21444 | -4/Factory | Identified exit to Research 21493 | -4/Factory | Loaded intel: 8 recycling unit locations 21737 | -4/Factory | Build established: Hacker-Ninja 22001 | -4/Factory | Discovered new exit (range 15) 22011 | -4/Factory | Identified exit to Upper Caves 22072 | -4/Factory | Repaired Exp. Sensor Array? 22138 | -4/Factory | Discovered exit to Research (range 16) 22281 | -4/Factory | Imp. Hacking Suite fried by hacking feedback 22543 | -4/Factory | Discovered exit to Upper Caves (range 13) 22696 | -4/Factory | Fabricated Exp. Q-thruster (x1) 22934 | -4/Factory | Fabricated Exp. Q-thruster? 23102 | -4/Factory | Cargo convoy interrupted 23143 | -4/Factory | Destroyed 8 combat bots 23143 | -4/Factory | Manually triggered Chute Trap 23143 | -4/Factory | Sucked down chute 23143 | -4/Factory | Entered Waste 23149 | -4/Waste | Spotted C-40 Crusher 23155 | -4/Waste | Spotted C-40 Crusher 23155 | -4/Waste | Spotted C-40 Crusher 23158 | -4/Waste | Spotted C-40 Crusher 23159 | -4/Waste | Spotted C-40 Crusher 23159 | -4/Waste | Spotted C-40 Crusher 23159 | -4/Waste | Discovered new exit (range 12) 23163 | -4/Waste | Warlord forces began an assault 23194 | -4/Waste | Destroyed C-40 Crusher 23196 | -4/Waste | Allies destroyed C-40 Crusher 23238 | -4/Waste | Identified exit to Factory 23271 | -4/Waste | Allies destroyed C-40 Crusher 23280 | -4/Waste | Found Adv. Force Booster 23345 | -4/Waste | Entered Factory 23345 | -4/Factory | Accompanied by 15 allies 23355 | -4/Factory | Discovered exit to Research (range 13) 23436 | -4/Factory | Spotted B-86 Titan 23445 | -4/Factory | Lost 3 allies 23475 | -4/Factory | Identified Transdimensional Reconstructor 23595 | -4/Factory | First assault squad dispatched 23633 | -4/Factory | Fabricated Exp. Q-thruster? 23660 | -4/Factory | Loaded intel: 8 recycling unit locations 23805 | -4/Factory | Fabricated H-77 Assassin? 23847 | -4/Factory | Identified A0-MCA's Component Scanner 23866 | -4/Factory | Lost 3 allies 24075 | -4/Factory | Fabricated P-80 Master (x2) 24117 | -4/Factory | Entered Upper Caves 24125 | -4/Upper Caves | Learned Research stockpile data 24126 | -4/Upper Caves | Learned Research garrison access intel 24329 | -4/Upper Caves | Discovered new exit (range 9) 24330 | -4/Upper Caves | Identified exit to Upper Caves 24347 | -4/Upper Caves | Entered another Upper Caves area 24366 | -4/Upper Caves | Discovered exit to Research (range 13) 24368 | -4/Upper Caves | Learned location of 1 exit from Research 24418 | -4/Upper Caves | Build established: Hacker-Scout 24493 | -4/Upper Caves | Discovered new exit (range 15) 24565 | -4/Upper Caves | Identified exit to Warlord 24565 | -4/Upper Caves | Entered Warlord 24566 | -4/Warlord | Identified exit to Proximity Caves 24598 | -4/Warlord | Found Minesniffer Drone Bay 24616 | -4/Warlord | Found RU-N14's Throwing Claymores v3 24654 | -4/Warlord | Found Vortex Chain Reactor 24665 | -4/Warlord | Found System Mapper 24678 | -4/Warlord | Received a Watcher feed algorithm from an ecstatic Tinkerer 24678 | -4/Warlord | Ran a Watcher feed algorithm 24684 | -4/Warlord | Rebuked by Warlord 24687 | -4/Warlord | Warlord's base attacked by MAIN.C 24913 | -4/Warlord | Found RU-N14's Throwing Claymores v3 24927 | -4/Warlord | Found RU-N14's Throwing Claymores v3 24943 | -4/Warlord | Found RU-N14's Throwing Claymores v3 24961 | -4/Warlord | Lost 4 allies 24973 | -4/Warlord | Warlord forces counterattacked 25039 | -4/Warlord | Build established: Machinist-Sprinter 25065 | -4/Warlord | Lost 4 allies 25065 | -4/Warlord | Opened side exit 25084 | -4/Warlord | Spotted Executioner 25087 | -4/Warlord | Spotted Executioner 25087 | -4/Warlord | Spotted Striker 25180 | -4/Warlord | Entered Proximity Caves 25494 | -3/Proximity Caves | Build established: Machinist-Scout 25648 | -3/Proximity Caves | Discovered exit to Research (range 11) 25663 | -3/Proximity Caves | Entered Research 25663 | -3/Research | Evolved 2 slots: Utility x2 25664 | -3/Research | Identified exit to Armory 25665 | -3/Research | Identified exit to Research 25665 | -3/Research | Identified exit to Testing 25667 | -3/Research | Loaded intel: 4 garrison access locations 25700 | -3/Research | Loaded intel: 5 recycling unit locations 25838 | -3/Research | Spotted B-86 Titan 25914 | -3/Research | Discovered exit to Research (range 12) 25952 | -3/Research | Build established: Hacker-Ninja 25985 | -3/Research | Spotted B-86 Titan 26013 | -3/Research | Fabricated Assault Drone Bay (x1) 26090 | -3/Research | Entered Testing 26124 | -3/Testing | Found Null Cannon 26131 | -3/Testing | Repaired Adv. Force Booster? 26183 | -3/Testing | Protovariant out of control (PG-IU8GEI5ION) 26350 | -3/Testing | Spotted PG-IU8GEI5ION 26418 | -3/Testing | Found Exp. Hacking Suite 26469 | -3/Testing | Repaired Exp. Sensor Array? 26486 | -3/Testing | Discovered exit to Research (range 13) 26516 | -3/Testing | Found System Mapper 26573 | -3/Testing | Found Faulty Exp. Shield Generator 26575 | -3/Testing | Identified Dimensional Node Initializer 26626 | -3/Testing | Found Hvy. Regenerative Plating 26659 | -3/Testing | Entered Research 26659 | -2/Research | Evolved 2 slots: Utility x2 26680 | -2/Research | Discovered new exit (range 8) 26795 | -2/Research | Identified exit to Quarantine 26800 | -2/Research | Spotted B-90 Cyclops 26804 | -2/Research | Entered Quarantine 26812 | -2/Quarantine | Found Alien Artifact 26813 | -2/Quarantine | Identified Subatomic Replicator 26813 | -2/Quarantine | Used Subatomic Replicator to create Alien Artifact 26823 | -2/Quarantine | Identified exit to Access 26874 | -2/Quarantine | Repaired Cld. Impulse Thruster 26909 | -2/Quarantine | Found Alien Slashing Weapon 26909 | -2/Quarantine | Identified Sigix Broadsword 26972 | -2/Quarantine | Identified Supercharged TR 27120 | -2/Quarantine | Found Alien Reactor 27185 | -2/Quarantine | Repaired Exp. Sensor Array? 27195 | -2/Quarantine | Found Exp. Core Analyzer 27214 | -2/Quarantine | Found Gamma Bomb Array 27215 | -2/Quarantine | Identified Matter Drive 27222 | -2/Quarantine | Spotted Fortress 27229 | -2/Quarantine | Discovered new exit (range 6) 27229 | -2/Quarantine | Discovered new exit (range 7) 27230 | -2/Quarantine | Identified exit to Protoforge 27230 | -2/Quarantine | Entered Protoforge 27344 | -2/Protoforge | Spotted B-90 Cyclops 27493 | -2/Protoforge | Build established: Wizard-Scout 27495 | -2/Protoforge | Spotted Hotshot 27497 | -2/Protoforge | Spotted Hotshot 27498 | -2/Protoforge | Superfortress began startup sequence 27513 | -2/Protoforge | Spotted Hotshot 27517 | -2/Protoforge | Spotted Hotshot 27517 | -2/Protoforge | Spotted Hotshot 27522 | -2/Protoforge | Spotted Hotshot 27537 | -2/Protoforge | Spotted EXE-6 27537 | -2/Protoforge | Spotted EXE-6 27540 | -2/Protoforge | Spotted Decapitator 27561 | -2/Protoforge | Spotted EXE-6 27561 | -2/Protoforge | Spotted EXE-6 27566 | -2/Protoforge | UFD initiated attack on Protoforge (Readiness: Maximal) 27566 | -2/Protoforge | Loaded intel: 3 recycling unit locations 27578 | -2/Protoforge | Scraphulk reinforcements arrived 27585 | -2/Protoforge | Scraphulk reinforcements arrived 27603 | -2/Protoforge | Optimus greeted in Protoforge 27619 | -2/Protoforge | Found Dimensional Node Initializer 27621 | -2/Protoforge | Initialized slip node 27624 | -2/Protoforge | Found Exp. Core Analyzer 27642 | -2/Protoforge | Lost 4 allies 27691 | -2/Protoforge | Found Cep. Chromion Battery 27694 | -2/Protoforge | Warped through subspace to slip node 27698 | -2/Protoforge | Spotted Decapitator 27707 | -2/Protoforge | Allies destroyed 02F06-K 27717 | -2/Protoforge | Spotted Hotshot 27717 | -2/Protoforge | Spotted Striker 27719 | -2/Protoforge | Fabricated A-27 Freighter? 27720 | -2/Protoforge | Optimus attacked Superfortress 27720 | -2/Protoforge | Destroyed Superfortress 27726 | -2/Protoforge | Found Cep. Zero-point Core 27728 | -2/Protoforge | Found Cep. Zero-point Core 27731 | -2/Protoforge | Found Cep. NT7 Matterbank 27732 | -2/Protoforge | Fabricated Femtoactuators? 27736 | -2/Protoforge | Found Exp. EM Disruption Field 27755 | -2/Protoforge | Lost 21 allies 27828 | -2/Protoforge | Spotted Hotshot 27832 | -2/Protoforge | Spotted Decapitator 27841 | -2/Protoforge | Spotted Decapitator 27866 | -2/Protoforge | Spotted Decapitator 27868 | -2/Protoforge | Spotted Decapitator 27868 | -2/Protoforge | Spotted Hotshot 27871 | -2/Protoforge | Spotted Hotshot 27871 | -2/Protoforge | Spotted Hotshot 27879 | -2/Protoforge | Spotted Executioner 27881 | -2/Protoforge | Spotted Executioner 27889 | -2/Protoforge | Spotted Striker 27890 | -2/Protoforge | Spotted Striker 27916 | -2/Protoforge | Lost 3 allies 27934 | -2/Protoforge | Destroyed Hotshot 27934 | -2/Protoforge | Destroyed Hotshot 27936 | -2/Protoforge | Destroyed Hotshot 27954 | -2/Protoforge | Destroyed Hotshot 28033 | -2/Protoforge | Spotted Executioner 28039 | -2/Protoforge | Spotted Executioner 28127 | -2/Protoforge | Spotted Immortal 28127 | -2/Protoforge | Spotted Immortal 28127 | -2/Protoforge | Spotted Immortal 28165 | -2/Protoforge | Spotted V629-p 28191 | -2/Protoforge | Spotted Decapitator 28191 | -2/Protoforge | Spotted Decapitator 28191 | -2/Protoforge | Spotted Decapitator 28191 | -2/Protoforge | Spotted Decapitator 28218 | -2/Protoforge | Spotted Immortal 28218 | -2/Protoforge | Spotted Immortal 28218 | -2/Protoforge | Spotted V520-g 28617 | -2/Protoforge | Found Cep. RG22 Armor 28624 | -2/Protoforge | Found Cep. Core Shell 28841 | -2/Protoforge | Additional patrols dispatched to research labs 28850 | -2/Protoforge | Found Alien Artifact 28850 | -2/Protoforge | Identified Cep. Nanofilaments [Conductive] 28850 | -2/Protoforge | Installed Cep. Nanofilaments [Conductive], 2 resistances modified: TH -15%, EM +25% 28899 | -2/Protoforge | UFD reported confirmed Drillbomb installation 28951 | -2/Protoforge | Spotted AP7-3 28954 | -2/Protoforge | Spotted AP7-3 29095 | -2/Protoforge | Destroyed AP7-3 29106 | -2/Protoforge | Found Cep. XC Strikerail 29109 | -2/Protoforge | Found Enh. Gamma Rifle 29113 | -2/Protoforge | Lost 3 parts (1n1u1w) 29278 | -2/Protoforge | Found Cep. Blasthammer 29283 | -2/Protoforge | Found Cep. Blasthammer 29286 | -2/Protoforge | Found Cep. Core Analysis Suite 29293 | -2/Protoforge | Found Cep. Cloak Mesh 29296 | -2/Protoforge | Found Cep. Cloak Mesh 29300 | -2/Protoforge | Found Cep. Core Analysis Suite 29340 | -2/Protoforge | Build established: Scavenger-Gladiator 29386 | -2/Protoforge | Found Exp. Remote Shield 29593 | -2/Protoforge | Destroyed Immortal 29611 | -2/Protoforge | Found Exp. Jetlance 29640 | -2/Protoforge | Destroyed AP7-3 29751 | -2/Protoforge | UFD reported confirmed Drillbomb installation 29844 | -2/Protoforge | Build established: Scavenger-Mutant 29849 | -2/Protoforge | Spotted Immortal 29849 | -2/Protoforge | Spotted Immortal 29931 | -2/Protoforge | Destroyed Immortal 29944 | -2/Protoforge | UFD reported confirmed Drillbomb installation 29976 | -2/Protoforge | Spotted Decapitator 29976 | -2/Protoforge | Spotted Decapitator 29976 | -2/Protoforge | Spotted Decapitator 29976 | -2/Protoforge | Spotted Decapitator 29987 | -2/Protoforge | Destroyed Immortal 30216 | -2/Protoforge | Destroyed Decapitator 30229 | -2/Protoforge | Destroyed Decapitator 30229 | -2/Protoforge | Destroyed Decapitator 30237 | -2/Protoforge | Destroyed Decapitator 30274 | -2/Protoforge | Found Cep. Antigrav Storage Unit 30276 | -2/Protoforge | Found Cep. NT7 Matterbank 30278 | -2/Protoforge | Found Cep. Chromion Battery 30284 | -2/Protoforge | Found Cep. Matter Streamer 30363 | -2/Protoforge | Found Crosscalibrator 30368 | -2/Protoforge | Found Cep. Weapon Articulator 30400 | -2/Protoforge | UFD reported confirmed Drillbomb installation 30423 | -2/Protoforge | Spotted Executioner 30526 | -2/Protoforge | Found Exp. System Purifier 30574 | -2/Protoforge | Spotted Decapitator 30603 | -2/Protoforge | Spotted Decapitator 30603 | -2/Protoforge | Spotted Decapitator 30634 | -2/Protoforge | Found Cep. Network Penetrator 30636 | -2/Protoforge | Found Exp. Active Sensor Suite 30720 | -2/Protoforge | Build established: Scavenger-Gladiator 30788 | -2/Protoforge | UFD reported confirmed Drillbomb installation 30799 | -2/Protoforge | Spotted V950-l 30821 | -2/Protoforge | Destroyed Immortal 30842 | -2/Protoforge | Destroyed Immortal 30861 | -2/Protoforge | Found Cep. Core Shell 30870 | -2/Protoforge | Found Exp. Jetlance 30883 | -2/Protoforge | Found Cep. Helical Railcannon 30888 | -2/Protoforge | Found Cep. Helical Railcannon 30959 | -2/Protoforge | Spotted V656-m 30970 | -2/Protoforge | Destroyed V520-g 30980 | -2/Protoforge | Destroyed V656-m 31116 | -2/Protoforge | Build established: Scavenger-Mutant 31140 | -2/Protoforge | Destroyed Decapitator 31155 | -2/Protoforge | Destroyed Decapitator 31156 | -2/Protoforge | Destroyed Decapitator 31165 | -2/Protoforge | Destroyed Decapitator 31192 | -2/Protoforge | Spotted V150-u 31209 | -2/Protoforge | Destroyed V150-u 31226 | -2/Protoforge | Found Cep. Rapid Grenade Launcher 31230 | -2/Protoforge | Found Faulty Cep. Rapid Grenade Launcher 31241 | -2/Protoforge | Found Cep. Tactical Fusion Warhead 31303 | -2/Protoforge | Spotted V694-w 31441 | -2/Protoforge | Spotted Executioner 31454 | -2/Protoforge | Build established: Scavenger-Gladiator 31475 | -2/Protoforge | Spotted Striker 31477 | -2/Protoforge | Spotted Striker 31492 | -2/Protoforge | Destroyed Striker 31507 | -2/Protoforge | Destroyed Striker 31594 | -2/Protoforge | UFD reported confirmed Drillbomb installation 31603 | -2/Protoforge | Attached CPS modules to V666-g. 31777 | -2/Protoforge | Build established: Scavenger-Mutant 31800 | -2/Protoforge | Attached CPS modules to V377-i. 31846 | -2/Protoforge | Spotted V969-h 31862 | -2/Protoforge | Found Cep. Melee Reflex Suite 31878 | -2/Protoforge | Destroyed V969-h 31884 | -2/Protoforge | Scanned by Researcher 31890 | -2/Protoforge | Destroyed V694-w 31896 | -2/Protoforge | Destroyed V629-p 31904 | -2/Protoforge | Lost 4 allies 31919 | -2/Protoforge | Found Exp. Shield Generator 31923 | -2/Protoforge | UFD reported confirmed Drillbomb installation 32006 | -2/Protoforge | Found Cep. Zero-point Core 32056 | -2/Protoforge | Spotted V748-x 32057 | -2/Protoforge | Spotted V661-g 32074 | -2/Protoforge | Destroyed V748-x 32130 | -2/Protoforge | Found Faulty Cep. Zero-point Core 32166 | -2/Protoforge | Build established: Scavenger-Gladiator 32253 | -2/Protoforge | Found Cep. Core Shell 32290 | -2/Protoforge | Found Cep. Plasma Driver 32296 | -2/Protoforge | Found Faulty Cep. Plasma Driver 32315 | -2/Protoforge | Found Faulty Cep. Plasma Driver 32531 | -2/Protoforge | Found Transdimensional Reconstructor 32539 | -2/Protoforge | Found Cep. Navigation Harness 32556 | -2/Protoforge | Build established: Scavenger-Mutant 32664 | -2/Protoforge | Spotted Executioner 32668 | -2/Protoforge | Destroyed Executioner 32695 | -2/Protoforge | Lost 3 allies 32704 | -2/Protoforge | Spotted Striker 32705 | -2/Protoforge | Spotted Striker 32709 | -2/Protoforge | Destroyed Striker 32715 | -2/Protoforge | Destroyed Striker 32722 | -2/Protoforge | UFD reported confirmed Drillbomb installation 32741 | -2/Protoforge | Spotted Striker 32756 | -2/Protoforge | Destroyed 7 combat bots 32793 | -2/Protoforge | Spotted Striker 32818 | -2/Protoforge | Spotted Executioner 32822 | -2/Protoforge | Destroyed Executioner 32828 | -2/Protoforge | Spotted Executioner 32828 | -2/Protoforge | Destroyed Executioner 32832 | -2/Protoforge | Spotted Executioner 32834 | -2/Protoforge | Destroyed Executioner 32858 | -2/Protoforge | Destroyed 7 combat bots 32864 | -2/Protoforge | Lost 4 allies 32980 | -2/Protoforge | UFD reported confirmed Drillbomb installation 32990 | -2/Protoforge | Spotted Striker 33004 | -2/Protoforge | Destroyed Striker 33100 | -2/Protoforge | Spotted Executioner 33101 | -2/Protoforge | Spotted Striker 33103 | -2/Protoforge | Destroyed Executioner 33120 | -2/Protoforge | Destroyed Striker 33126 | -2/Protoforge | Spotted Striker 33126 | -2/Protoforge | Destroyed Striker 33130 | -2/Protoforge | Spotted Striker 33130 | -2/Protoforge | Destroyed Striker 33132 | -2/Protoforge | Lost 5 allies 33134 | -2/Protoforge | Spotted Striker 33135 | -2/Protoforge | Spotted Striker 33138 | -2/Protoforge | Destroyed Striker 33147 | -2/Protoforge | Destroyed Striker 33159 | -2/Protoforge | Spotted Striker 33161 | -2/Protoforge | Spotted Striker 33161 | -2/Protoforge | Spotted Executioner 33183 | -2/Protoforge | Destroyed Striker 33199 | -2/Protoforge | Destroyed Executioner 33236 | -2/Protoforge | Destroyed 27 combat bots 33242 | -2/Protoforge | Lost 6 allies 33262 | -2/Protoforge | Found Cep. Weapon Articulator 33272 | -2/Protoforge | Found Exp. System Purifier 33287 | -2/Protoforge | Found Exp. Trap Extractor 33375 | -2/Protoforge | Found Cep. Combat Aerolev Unit 33626 | -2/Protoforge | Found Cep. Heavy Railcannon 33668 | -2/Protoforge | Found Cep. Arcsight Missile Launcher 33754 | -2/Protoforge | Found Cep. Zero-point Core 33796 | -2/Protoforge | Spotted Executioner 33939 | -2/Protoforge | Spotted Striker 33964 | -2/Protoforge | Spotted Executioner 33966 | -2/Protoforge | Destroyed Executioner 33967 | -2/Protoforge | Spotted Executioner 33968 | -2/Protoforge | Destroyed Executioner 34003 | -2/Protoforge | Destroyed 7 combat bots 34040 | -2/Protoforge | Found Exp. Kinecellerator 34097 | -2/Protoforge | Spotted Executioner 34102 | -2/Protoforge | Spotted Executioner 34193 | -2/Protoforge | Build established: Hacker-Mutant 34202 | -2/Protoforge | Spotted Executioner 34202 | -2/Protoforge | Destroyed Executioner 34203 | -2/Protoforge | P-80 Master assimilated allied Lugger 278 34204 | -2/Protoforge | Destroyed Executioner 34259 | -2/Protoforge | Destroyed 15 combat bots 34273 | -2/Protoforge | Spotted Executioner 34275 | -2/Protoforge | Spotted Executioner 34288 | -2/Protoforge | Destroyed Executioner 34317 | -2/Protoforge | Destroyed Executioner 34322 | -2/Protoforge | Spotted Executioner 34322 | -2/Protoforge | Spotted Striker 34322 | -2/Protoforge | Destroyed Executioner 34323 | -2/Protoforge | Spotted Executioner 34328 | -2/Protoforge | Destroyed Executioner 34338 | -2/Protoforge | Spotted Striker 34339 | -2/Protoforge | Spotted Striker 34342 | -2/Protoforge | Destroyed Striker 34363 | -2/Protoforge | Destroyed 13 combat bots 34373 | -2/Protoforge | Spotted Executioner 34375 | -2/Protoforge | Spotted Striker 34380 | -2/Protoforge | Destroyed Executioner 34415 | -2/Protoforge | Lost 4 allies 34428 | -2/Protoforge | Destroyed 11 combat bots 34445 | -2/Protoforge | Spotted Executioner 34450 | -2/Protoforge | Destroyed Executioner 34476 | -2/Protoforge | Spotted Executioner 34579 | -2/Protoforge | Spotted Executioner 34581 | -2/Protoforge | Destroyed Executioner 34583 | -2/Protoforge | Spotted Executioner 34585 | -2/Protoforge | Destroyed Executioner 34631 | -2/Protoforge | Destroyed 15 combat bots 34638 | -2/Protoforge | Spotted Executioner 34644 | -2/Protoforge | Destroyed Executioner 34740 | -2/Protoforge | Core integrity fell below 50% 34752 | -2/Protoforge | Spotted Executioner 34753 | -2/Protoforge | Destroyed Executioner 34821 | -2/Protoforge | Destroyed 23 combat bots 34821 | -2/Protoforge | Spotted Striker 34823 | -2/Protoforge | Destroyed Striker 34824 | -2/Protoforge | Spotted Executioner 34826 | -2/Protoforge | Destroyed Executioner 34833 | -2/Protoforge | Destroyed Striker 34833 | -2/Protoforge | Destroyed Executioner 34861 | -2/Protoforge | Destroyed 14 combat bots 34918 | -2/Protoforge | Spotted Executioner 34918 | -2/Protoforge | Spotted Executioner 34918 | -2/Protoforge | Spotted Striker 34919 | -2/Protoforge | Spotted Striker 34921 | -2/Protoforge | Destroyed Executioner 34941 | -2/Protoforge | Spotted Executioner 34941 | -2/Protoforge | Spotted Executioner 34942 | -2/Protoforge | Destroyed Executioner 34945 | -2/Protoforge | Destroyed Executioner 34966 | -2/Protoforge | Destroyed 15 combat bots 34973 | -2/Protoforge | Lost 4 allies 35016 | -2/Protoforge | Spotted Executioner 35016 | -2/Protoforge | Spotted Striker 35017 | -2/Protoforge | Spotted Executioner 35018 | -2/Protoforge | Spotted Executioner 35019 | -2/Protoforge | Destroyed Executioner 35019 | -2/Protoforge | Destroyed Executioner 35019 | -2/Protoforge | Destroyed Executioner 35022 | -2/Protoforge | Destroyed Striker 35047 | -2/Protoforge | Destroyed 14 combat bots 35089 | -2/Protoforge | Found Cep. Gyrokinetic System 35098 | -2/Protoforge | Found Cep. Gyrokinetic System 35153 | -2/Protoforge | Spotted Striker 35155 | -2/Protoforge | Destroyed Striker 35155 | -2/Protoforge | Spotted Striker 35159 | -2/Protoforge | Destroyed Striker 35165 | -2/Protoforge | Spotted Striker 35165 | -2/Protoforge | Spotted Executioner 35168 | -2/Protoforge | Spotted Striker 35168 | -2/Protoforge | Spotted Striker 35175 | -2/Protoforge | Destroyed Executioner 35219 | -2/Protoforge | Destroyed 16 combat bots 35219 | -2/Protoforge | Spotted Executioner 35221 | -2/Protoforge | Spotted Executioner 35230 | -2/Protoforge | Lost 4 allies 35240 | -2/Protoforge | Destroyed Executioner 35240 | -2/Protoforge | Destroyed Executioner 35250 | -2/Protoforge | Spotted Executioner 35253 | -2/Protoforge | Destroyed Executioner 35255 | -2/Protoforge | Destroyed Executioner 35259 | -2/Protoforge | Spotted Striker 35260 | -2/Protoforge | Spotted Executioner 35266 | -2/Protoforge | Destroyed Striker 35266 | -2/Protoforge | Destroyed Executioner 35287 | -2/Protoforge | Destroyed 20 combat bots 35316 | -2/Protoforge | Spotted Executioner 35316 | -2/Protoforge | Spotted Executioner 35316 | -2/Protoforge | Spotted Executioner 35316 | -2/Protoforge | Spotted Executioner 35320 | -2/Protoforge | Destroyed Executioner 35324 | -2/Protoforge | Destroyed Executioner 35330 | -2/Protoforge | Destroyed Executioner 35332 | -2/Protoforge | Destroyed Executioner 35341 | -2/Protoforge | Spotted Striker 35343 | -2/Protoforge | Destroyed Executioner 35350 | -2/Protoforge | Lost 5 allies 35366 | -2/Protoforge | Destroyed 17 combat bots 35417 | -2/Protoforge | Spotted Striker 35527 | -2/Protoforge | Spotted Executioner 35527 | -2/Protoforge | Spotted Striker 35527 | -2/Protoforge | Spotted Striker 35529 | -2/Protoforge | Destroyed Striker 35548 | -2/Protoforge | Spotted Striker 35550 | -2/Protoforge | Spotted Executioner 35565 | -2/Protoforge | Destroyed Striker 35610 | -2/Protoforge | Lost 10 allies 35687 | -2/Protoforge | Found Exp. Remote Shield 35733 | -2/Protoforge | Found Faulty Cep. Helical Railcannon 35767 | -2/Protoforge | Found Faulty Cep. Lightning Penetrator 35770 | -2/Protoforge | Found Cep. Lightning Penetrator 35826 | -2/Protoforge | Build established: Wizard-Mutant 35853 | -2/Protoforge | Found Faulty Cep. Heavy Railcannon 36131 | -2/Protoforge | Found Faulty Cep. Gyrokinetic System 36438 | -2/Protoforge | Found Cep. Networked Targeting System 36526 | -2/Protoforge | Found Exp. System Purifier 36557 | -2/Protoforge | Spotted Striker 36560 | -2/Protoforge | Spotted Striker 36573 | -2/Protoforge | Destroyed Striker 36580 | -2/Protoforge | Destroyed Striker 36596 | -2/Protoforge | Build established: Wizard-Gladiator 36866 | -2/Protoforge | Spotted Striker 37227 | -2/Protoforge | Build established: Wizard-Mutant 37228 | -2/Protoforge | Spotted Striker 37231 | -2/Protoforge | Destroyed Striker 37298 | -2/Protoforge | Lost 5 allies 37384 | -2/Protoforge | Spotted Executioner 37385 | -2/Protoforge | Spotted Striker 37391 | -2/Protoforge | Destroyed Executioner 37426 | -2/Protoforge | Spotted Striker 37428 | -2/Protoforge | Destroyed Striker 37429 | -2/Protoforge | Spotted Executioner 37430 | -2/Protoforge | Spotted Executioner 37431 | -2/Protoforge | Spotted Executioner 37434 | -2/Protoforge | P-80 Master assimilated allied Lugger 178 37437 | -2/Protoforge | Destroyed Executioner 37449 | -2/Protoforge | Spotted Executioner 37455 | -2/Protoforge | Destroyed Executioner 37455 | -2/Protoforge | Spotted Executioner 37461 | -2/Protoforge | Destroyed Executioner 37476 | -2/Protoforge | Destroyed Executioner 37482 | -2/Protoforge | Lost 3 allies 37507 | -2/Protoforge | Destroyed 15 combat bots 37556 | -2/Protoforge | Spotted Executioner 37559 | -2/Protoforge | Spotted Striker 37580 | -2/Protoforge | Destroyed Executioner 37583 | -2/Protoforge | Destroyed Striker 37647 | -2/Protoforge | Build established: Hacker-Mutant 37680 | -2/Protoforge | Spotted Striker 37682 | -2/Protoforge | Destroyed Striker 37724 | -2/Protoforge | Destroyed 7 combat bots 37731 | -2/Protoforge | Lost 3 allies 37739 | -2/Protoforge | Spotted Striker 37741 | -2/Protoforge | Spotted Striker 37759 | -2/Protoforge | Destroyed Striker 37759 | -2/Protoforge | Destroyed Striker 37846 | -2/Protoforge | Spotted Executioner 37865 | -2/Protoforge | Spotted Executioner 37868 | -2/Protoforge | Spotted Executioner 37868 | -2/Protoforge | Destroyed Executioner 37874 | -2/Protoforge | Core integrity fell below 20% 37883 | -2/Protoforge | Destroyed Executioner 37889 | -2/Protoforge | Destroyed Executioner 37911 | -2/Protoforge | Lost 4 allies 37933 | -2/Protoforge | Crushed by falling debris 37949 | -2/Protoforge | Spotted Executioner 37950 | -2/Protoforge | Spotted Striker 37950 | -2/Protoforge | Spotted Striker 37951 | -2/Protoforge | Destroyed Executioner 37951 | -2/Protoforge | Spotted Striker 37954 | -2/Protoforge | Spotted Striker 37959 | -2/Protoforge | Destroyed Striker 37962 | -2/Protoforge | Destroyed Striker 37965 | -2/Protoforge | Destroyed Striker 37969 | -2/Protoforge | Spotted Executioner 37970 | -2/Protoforge | Destroyed by Executioner with Helical Railgun Last Messages --------------- 37964_ Striker destroyed. 37965_ Railslug penetrates Striker. 37965_ Striker destroyed. 37965_ N-04 Retriever collects Corrupted Mak. Salvage Targeting Computer. 37966_ S-43 Plague suffers critical hit (Burn). 37966_ Slug penetrates 02F**-D. 37966_ 02F**-D suffers critical hit (Destroy). 37967_ N-04 Retriever collects Lgt. Antimatter Reactor. 37967_ N-04 Retriever collects Cesium-ion Thruster. 37968_ Slug penetrates P-80 Master. 37968_ P-80 Master suffers critical hit (Destroy). 37968_ Destroyed Imp. Antigrav System. 37968_ Railslug penetrates P-80 Master. 37968_ P-80 Master destroyed. 37968_ 02F**-D destroyed. 37969_ B-74 Champion destroyed. 37969_ N-04 Retriever collects Adv. Heat Sink. 37969_ N-04 Retriever collects Lgt. Antimatter Reactor. 37970_ Slug penetrates 02F**-D. 37970_ S-43 Plague destroyed. Map ----- +----------------------------------------------------+ | ???????????????????????????????????????## | | ???????????????????????????????????????## | | ???????????????????????????????????????## | | ##############???????????????????????#### | | ##############???????????????????????# ## #####! | | ##??????????????????????## # # ###" | | ##??????????????????????# ## ### ## | | """ """ ##??????????????????????# # ## ## | | """ """ ##??????????????????????# ## ## ## | | " """ ##??????????????????????# # # # # # | | ####????????????????????##### ## # | | # ####??????????????????# # # # | | ### # ###????????????????# # ### | | ## # #????????????????## # ## | | # ######??????????# ## # # # | | # # ### #######??????????# # ###### | | ## # #######??###?## # # # | | # = # ;;# # #### ### | | ! !!% % ; ### ## # | | [ "=% =%! ==! ; # % | | %%% & %%%%% ;# % | | %" %%% %% % % % # ! % | | % =%!% ! %% %%%% % % [% %" | | %%!* !=%=%!=g*!%! %% [ [! !! ! * =% | | * ! !%[[*C=* % !=!% !!! =%[ =[ !!!%* | | ] [%![%=%! % %%![ *=%@% % |*/|!= [ =% | | ] %*%/ !%%%[!*%%=%!%* %%! % ! !=%=%[! =! %% | | % %%=[*!=%%%%%%%%!!%!%%![!==[!%% ]% | | * ! =! !!%%]%%*=%s %=%%%%%%=!% %!%%!% %!% | | =% *! [%= *%*b!%=* %!*%%=%%%%m% %%%% % | | %!%*%% !! ![%[%!! % % [%[*%%%% % %nm%%%%%% | | *=[%! %!/ % %!%%%!/%%= % % *%=%!%!*!%#%% %%" !% | | % % /%!!!% %%%! [[=%[%=/=%%== % % % | | E%%%[h%%%!!= = %/!% !![*!=%%%*%% %%% | | % == #/*! [%=%% # ==[%%%**!!= =! | | /% [% ! % %%% #### =!%%%% % * | | =/*![ ## %=[!## # =% % % | | %=[** ! [[%=## ###### %%% != | | [!%=! # %%## =*% ## /!% [=*! | | %=!=!% ####![ !% % % % ! %%=%! | | [!%=%/ # %!= [ = % % % %![%[%! % | | !![!* # ! !% * %!%%*[! !!!= | | !=[% % ## %# ! % % %!]=%/[*=*%=!! | | %=!!% ## # # # # # % %%=%!* %*=*= | | / # ## ##### % # %* [=%=!!!%%= | | ! % ## #### ## ==%%/[*!== | | *[[![# # # ### ## % # ! *![[= ! | | *!%=[! #[## # ### # " # !% % =! | | % [ ![#%## # ### %%%%% % | | *!%!|=!==# #### # % #" %!% % | +----------------------------------------------------+ Best States ------------- Heat Dissipation 87 Coolant Potential 240 Energy Generation 71 Energy Capacity 1520 Matter Stores 490 Matter Capacity 550 Sight Range 23 Robot Scan Range 20 Terrain Scan Range 16 Terrain Scan Density 85 Jamming Range 16 Cloak Strength 9 Power Amplification 20 Additional Mass Support 25 Corruption Block 22 Armor Coverage 750 Resistance: EM 25 Core Shielding 90 Propulsion Shielding 15 Weapon Shielding 90 Weapon Cycling 15 Melee Speed Boost 50 Phase Shifting 15 Evasion (%) 84 Targeting Accuracy 30 Target Analysis 8 Core Analysis 16 Recoil Reduction 6 Matter Filtering 50 Kinecelleration 66 Force Boost 40 Offensive Hacking 70 Defensive Hacking 12 Authchip Count 3 Trap Extractor Capacity 12 Item Schematics ----------------- Huge Storage Unit | -10/Materials | Hacked Exp. Sensor Array | -9/Materials | Scanalyzed Imp. Hacking Suite | -6/Factory | Scanalyzed CPS Tube | -6/Factory | Scanalyzed Diametric Drive | -6/Factory | Scanalyzed Stasis Canceller | -6/Zion | Archive Mass Driver | -6/Zion | Archive Lrn. Missile Launcher | -6/Zion | Archive Hyp. Coil Gun | -6/Zion | Archive Angular Momentum Engine | -6/Zion | Archive Tesla Rifle | -6/Zion | Archive Imp. Particle Charger | -6/Zion | Archive Centrium Wheel | -6/Zion | Archive Hvy. Gauss Cannon | -6/Zion | Archive Magnetic Acceleration Cannon | -6/Zion | Archive Power Sword | -6/Zion | Archive Imp. Core Shielding | -6/Zion | Archive Lrn. Proton Cannon | -6/Zion | Archive Battle Cannon | -6/Zion | Free Hvy. Riot Gun | -6/Zion | Free Enh. Flamer | -6/Zion | Free Adv. Hacking Suite | -5/Factory | Scanalyzed Assault Drone Bay | -5/Zhirov | Free Exp. Heat Sink | -5/Zhirov | Free Exp. Optical Array | -5/Zhirov | Free Imp. Arc Thrower | -5/Zhirov | Free Cmb. Linear Gravjet | -4/Factory | Hacked Exp. Q-thruster | -4/Factory | Scanalyzed Adv. Force Booster | -4/Factory | Scanalyzed Hvy. Shield Leg | -3/Research | Hacked Com. Particle Reactor | -3/Testing | Archive Adv. Remote Shield | -3/Testing | Archive Adv. Plasma Rifle | -3/Testing | Archive Hvy. Dispersion Rifle | -3/Testing | Archive Exp. Target Analyzer | -3/Testing | Archive Hvy. Hardcell Cannon | -3/Testing | Archive Exp. Field Recycling Unit | -3/Testing | Archive Exp. Actuator Array | -3/Testing | Hacked Exp. Shield Generator | -3/Testing | Scanalyzed Imp. Diametric Drive | -3/Testing | Archive Exp. Focal Shield | -3/Testing | Archive Prc. Matter Filter | -3/Testing | Archive Exp. Signal Interpreter | -2/Quarantine | Archive Gravity Neutralizer | -2/Quarantine | Archive Hvy. Proton Cannon | -2/Quarantine | Archive Shock Maul | -2/Quarantine | Archive Neutron Missile Launcher | -2/Quarantine | Archive Exp. Matter Compressor | -2/Quarantine | Archive Mni. Smartbomb Launcher | -2/Quarantine | Archive Exp. Weapon Cycler | -2/Quarantine | Hacked Exp. Shock Absorption System | -2/Quarantine | Archive Exp. Thermal Shield | -2/Quarantine | Archive Enh. Biometal Leg | -2/Quarantine | Archive Exp. Terrain Scan Processor | -2/Quarantine | Archive Adv. Dynamic Insulation System | -2/Quarantine | Archive Femtoactuators | -2/Quarantine | Hacked Kinetic Spear | -2/Quarantine | Archive Exp. Core Analyzer | -2/Quarantine | Archive Exp. Thermal Defense Suite | -2/Quarantine | Archive Cld. Field Propulsion Drive | -2/Quarantine | Archive Adv. Variable Charge Gun | -2/Protoforge | Archive Cld. Nuclear Pulse Thruster | -2/Protoforge | Archive Imp. Matter Neutralizer | -2/Protoforge | Archive Quantum Shading Machine | -2/Protoforge | Archive Molecular Scythe | -2/Protoforge | Archive Proton Burst Cannon | -2/Protoforge | Archive Exp. Coolant Injector | -2/Protoforge | Archive Plasma Sword | -2/Protoforge | Archive Exp. Targeting Computer | -2/Protoforge | Archive Thermal Barrier | -2/Protoforge | Archive Coolant Network | -2/Protoforge | Archive Robot Schematics ------------------ M-13 Machinist | -10/Materials | Hacked W-25 Informer | -6/Zion | Archive G-50 Soldier | -6/Zion | Archive A-02 Transporter | -6/Zion | Archive D-83 Annihilator | -6/Zion | Archive K-01 Serf | -5/Factory | Archive T-07 Excavator | -5/Factory | Archive A-15 Conveyor | -5/Factory | Archive R-06 Scavenger | -5/Factory | Archive R-10 Processor | -5/Factory | Archive M-14 Sweeper | -5/Factory | Archive M-22 Extractor | -5/Factory | Archive M-30 Cleanser | -5/Factory | Archive M-28 Smith | -5/Factory | Archive M-36 Artificer | -5/Factory | Archive O-16 Technician | -5/Factory | Archive O-24 Administrator | -5/Factory | Archive O-32 Director | -5/Factory | Archive W-16 Scout | -5/Factory | Archive W-44 Eye | -5/Factory | Archive S-10 Pest | -5/Factory | Archive S-27 Virus | -5/Factory | Archive S-43 Plague | -5/Factory | Archive G-34 Mercenary | -5/Factory | Archive G-47 Trooper | -5/Factory | Archive G-67 Veteran | -5/Factory | Archive G-73 Enforcer | -5/Factory | Archive B-36 Bruiser | -5/Factory | Archive B-48 Gladiator | -5/Factory | Archive B-60 Warrior | -5/Factory | Archive B-74 Champion | -5/Factory | Archive L-31 Rogue | -5/Factory | Archive L-41 Fighter | -5/Factory | Archive L-61 Swordsman | -5/Factory | Archive Y-45 Defender | -5/Factory | Archive Y-54 Guardian | -5/Factory | Archive Y-64 Sentinel | -5/Factory | Archive Y-72 Warden | -5/Factory | Archive D-53 Grenadier | -5/Factory | Archive D-63 Destroyer | -5/Factory | Archive X-57 Shotgunner | -5/Factory | Archive X-62 Marksman | -5/Factory | Archive X-67 Chaingunner | -5/Factory | Archive X-72 Disruptor | -5/Factory | Archive X-77 Beamer | -5/Factory | Archive X-82 Rainmaker | -5/Factory | Archive X-87 Electro | -5/Factory | Archive H-55 Commando | -5/Factory | Archive H-66 Slayer | -5/Factory | Archive H-77 Assassin | -5/Factory | Archive H-88 Terminator | -5/Factory | Archive P-60 Hacker | -5/Factory | Archive P-70 Sage | -5/Factory | Archive P-80 Master | -5/Factory | Archive A-27 Freighter | -2/Quarantine | Archive C-57 Dissector | -2/Protoforge | Archive C-55 Analyst | -2/Protoforge | Archive Fabricated ------------ Adv. Transmission Jammer | x2 | -6/Factory | Preloaded Exp. Sensor Array | x1 | -6/Factory | Authchip K-01 Serf | x4 | -6/Factory | Preloaded Diametric Drive | x1 | -6/Factory Exp. Q-thruster | x1 | -4/Factory | Authchip Exp. Q-thruster | x1 | -4/Factory Exp. Q-thruster | x1 | -4/Factory | Authchip H-77 Assassin | x2 | -4/Factory | Preloaded P-80 Master | x2 | -4/Factory Assault Drone Bay | x1 | -3/Research | Authchip A-27 Freighter | x1 | -2/Protoforge | Preloaded Femtoactuators | x1 | -2/Protoforge Repaired ---------- Imp. Terrain Scanner | 31% | -10/Materials Exp. Sensor Array | 62% | -9/Materials | Broken Imp. Treads | 58% | -9/Materials Imp. Treads | 45% | -9/Storage Imp. Treads | 49% | -9/Storage Autogun | 61% | -9/Storage Lrg. Storage Unit | 40% | -6/Factory Imp. Flight Unit | 25% | -6/Factory Lgt. Deuterium Engine | 36% | -5/Factory Exp. Sensor Array | 31% | -4/Factory Adv. Force Booster | 50% | -3/Testing Exp. Sensor Array | 48% | -3/Testing Cld. Impulse Thruster | 27% | -2/Quarantine Exp. Sensor Array | 20% | -2/Quarantine Studied --------- Hvy. Assault Rifle | -9/Materials | Hacked Power Sword | -6/Factory | Hacked Lgt. Ion Engine | -6/Factory | Hacked Hyp. Gauss Rifle | -6/Factory | Hacked Mic. Fission Core | -4/Factory | Hacked Adv. Surge Thruster | -3/Research | Hacked Gamma Bomb Array | -2/Quarantine | Hacked Alien Tech Used ----------------- Integrated Reactor Subatomic Replicator Sigix Broadsword Dimensional Node Initializer Supercharged TR Concept Nanofilaments [Conductive] Achievements -------------- Dominance Asserted Ponder That! UFD MVP Challenges ------------ None Game ------ Seed HeatHugeJammer Manual? 0 Play Time 14:37:33 Cumulative 1115.3 hours Start 2025.11.25 @ 00:14:08 End 2025.11.26 @ 10:10:27 Sessions 7 Manual Loads 0 Difficulty Rogue Special Mode None Game No. 392 Rogue 387 Adventurer 4 Explorer 1 Win Type - Total 23 Types 13/3/1/2/0/1/0/0/2/1 Lore% 97 Gallery% 95 Achievement% 81 Wizard Run 0 Options --------- Layout 0 ASCII 0 Keyboard 0 Movement Numpad Keybinds 0 Fullscreen 2 Font 18/SmallcapsGlow Map View 76x50 Zoom Use 0% Tactical HUD 1 Map Filters NONE Filters NONE Steam 1 RUN: 19a79646-4502-48a1-b04c-97650ed83b5f